Workbook

Sheet Data summary
A1: RUN # 2 | B1: Rate classes | C1: Weather station used for normalization | H1: Test Year
A2: 1 | B2: Residential | C2: Ottawa | H2: 2004
A3: 2 | B3: GS>50kW
A4: 3 | B4: Street Lighting
A5: 4 | B5: GS<50kW
A6: 5 | B6: USL
A9: Monthly kWh by class (with actual weather) | C9: Jan | D9: Feb | E9: Mar | F9: Apr | G9: May | H9: Jun | I9: Jul | J9: Aug | K9: Sep | L9: Oct | M9: Nov | N9: Dec | O9: TOTAL
A10: 1 | B10: Residential | C10: 3953462 | D10: 3406214 | E10: 2974938 | F10: 2714148 | G10: 2370675 | H10: 2282193 | I10: 2394181 | J10: 2314301 | K10: 2231319 | L10: 2408842 | M10: 3078806 | N10: 3836583 | O10: =SUM(C10:N10) -> 33965662
A11: 2 | B11: GS>50kW | C11: 4820441.076 | D11: 4164726.894 | E11: 4219990.249 | F11: 4207396.647 | G11: 3791069.597 | H11: 4080646.763 | I11: 4096865.541 | J11: 4154458.039 | K11: 3993724.924 | L11: 4091990.715 | M11: 4418244.546 | N11: 5083745.574 | O11: =SUM(C11:N11) -> 51123300.56
A12: 3 | B12: Street Lighting | C12: 127170.71 | D12: 108796.2 | E12: 103190 | F12: 86412.5 | G12: 77429.76 | H12: 69085.26 | I12: 74495.37 | J12: 85053.1 | K12: 95182.54 | L12: 112147.85 | M12: 120365.24 | N12: 130754.42 | O12: =SUM(C12:N12) -> 1190082.95
A13: 4 | B13: GS<50kW | C13: 1881731.68 | D13: 1549374.77 | E13: 1587952.73 | F13: 775431.72 | G13: 1112704.97 | H13: 996405.33 | I13: 1419744.36 | J13: 1160752.13 | K13: 1078673.65 | L13: 1082472.12 | M13: 1088454.49 | N13: 1208426.06 | O13: =SUM(C13:N13) -> 14942124.01
A14: 5 | B14: USL | C14: 17213.12539 | D14: 17213.12539 | E14: 17213.12539 | F14: 16005.89275 | G14: 16005.89275 | H14: 16005.89275 | I14: 16005.89275 | J14: 16005.89275 | K14: 14764.90525 | L14: 14764.90525 | M14: 15940.58923 | N14: 15398.96713 | O14: =SUM(C14:N14) -> 192538.2068
A17: Monthly kWh by class (with normalized weather) | C17: Jan | D17: Feb | E17: Mar | F17: Apr | G17: May | H17: Jun | I17: Jul | J17: Aug | K17: Sep | L17: Oct | M17: Nov | N17: Dec | O17: TOTAL
A18: 1 | B18: Residential | C18: 3705759.099 | D18: 3431956.685 | E18: 3091350.907 | F18: 2685780.783 | G18: 2398965.858 | H18: 2316403.886 | I18: 2405699.432 | J18: 2334388.744 | K18: 2248312.666 | L18: 2454340.742 | M18: 3115342.922 | N18: 3724157.132 | O18: =SUM(C18:N18) -> 33912458.86
A19: 2 | B19: GS>50kW | C19: 4660494.232 | D19: 4181349.474 | E19: 4295160.451 | F19: 4189079.353 | G19: 3815736.509 | H19: 4178925.847 | I19: 4129955.037 | J19: 4212164.967 | K19: 4019116.475 | L19: 4121370.186 | M19: 4441837.186 | N19: 5011149.885 | O19: =SUM(C19:N19) -> 51256339.6
A20: 3 | B20: Street Lighting | C20: 127170.71 | D20: 108796.2 | E20: 103190 | F20: 86412.5 | G20: 77429.76 | H20: 69085.26 | I20: 74495.37 | J20: 85053.1 | K20: 95182.54 | L20: 112147.85 | M20: 120365.24 | N20: 130754.42 | O20: =SUM(C20:N20) -> 1190082.95
A21: 4 | B21: GS<50kW | C21: 1734480.063 | D21: 1564677.858 | E21: 1657156.376 | F21: 758568.4119 | G21: 1141090.338 | H21: 1154467.145 | I21: 1472962.111 | J21: 1253561.983 | K21: 1114839.794 | L21: 1109519.775 | M21: 1110174.963 | N21: 1141592.456 | O21: =SUM(C21:N21) -> 15213091.27
A22: 5 | B22: USL | C22: 17213.12539 | D22: 17213.12539 | E22: 17213.12539 | F22: 16005.89275 | G22: 16005.89275 | H22: 16005.89275 | I22: 16005.89275 | J22: 16005.89275 | K22: 14764.90525 | L22: 14764.90525 | M22: 15940.58923 | N22: 15398.96713 | O22: =SUM(C22:N22) -> 192538.2068
A25: Residential class information | C25: Equipment saturation
B26: Electric space heating | C26: 0.1691076294
B27: Electric water heating | C27: 0.378746594
B28: Air conditioning | C28: 0.4407394459
B29: Baseload | C29: 1
A32: General service >50kW | C32: 2004 kWh (Actual) | D32: 2004 kWh (Weather Corrected)
B33: Weather sensitive load | C33: 26496218.44 | D33: 26629257.48
B34: Non-weather sensitive load | C34: 24627082.12 | D34: 24627082.12
B35: TOTAL | C35: =SUM(C33:C34) -> 51123300.56 | D35: =SUM(D33:D34) -> 51256339.6

Sheet Hourly load shapes by class
A1: ALL UNITS IN GWh | E1: 2004 Load Shape | L1: 2015 Load Shape
A2: Year | B2: Month | C2: Day | D2: Hour (EST) | E2: Residential | F2: GS>50kW | G2: Street Lighting | H2: GS<50kW | I2: USL | J2: TOTAL LDC sales | L2: =E2 -> Residential | M2: GS>50kW | N2: Street Lighting | O2: GS<50kW | P2: USL | Q2: TOTAL LDC sales | T2: =E2 -> Residential | U2: =F2 -> GS>50kW | V2: Street Lighting | W2: GS<50kW | X2: USL
A3: 2004 | B3: 1 | C3: 1 | D3: 1 | E3: 0.003962659398 | F3: 0.003988906971 | G3: 0.0002763078979 | H3: 0.002219129316 | I3: 2.527029712e-05 | J3: 0.01047227388 | L3: =E3*T$5 -> 0.003380351611 | M3: =F3*U$5 -> 0.003380150845 | N3: =G3*V$5 -> 0.0002512785457 | O3: =H3*X$5 -> 0.001724693801 | P3: =I3 -> 2.527029712e-05 | Q3: =SUM(L3:O3) -> 0.008736474803 | S3: 2004 | T3: =SUM(E3:E8786)*1000000 -> 33912458.86 | U3: =SUM(F3:F8786)*1000000 -> 51256339.6 | V3: =SUM(G3:G8786)*1000000 -> 1190082.95 | W3: =SUM(H3:H8786)*1000000 -> 15213091.27 | X3: =SUM(I3:I8786)*1000000 -> 192538.2068
A4: 2004 | B4: 1 | C4: 1 | D4: 2 | E4: 0.003704818736 | F4: 0.003845462199 | G4: 0.0002763078979 | H4: 0.002226667743 | I4: 2.527029712e-05 | J4: 0.01007852687 | L4: 0.003160400308 | M4: 0.003258597505 | N4: 0.0002512785457 | O4: 0.001730552621 | P4: 2.527029712e-05 | Q4: 0.008400828979 | S4: 2015 Forecast | T4: 28929065.91 | U4: 43433993.55 | V4: 1082279.281 | W4: 11749297.38 | X4: 149639.5227
A5: 2004 | B5: 1 | C5: 1 | D5: 3 | E5: 0.003632189148 | F5: 0.003784744629 | G5: 0.0002763078979 | H5: 0.002164659658 | I5: 2.527029712e-05 | J5: 0.009883171629 | L5: 0.003098443546 | M5: 0.003207146181 | N5: 0.0002512785457 | O5: 0.001682360314 | P5: 2.527029712e-05 | Q5: 0.008239228586 | S5: Scaling Factor | T5: =T4/T3 -> 0.8530512646 | U5: =U4/U3 -> 0.8473877355 | V5: 0.9094149956 | W5: 0.7723149204 | X5: 0.777193915
A6: 2004 | B6: 1 | C6: 1 | D6: 4 | E6: 0.003597120479 | F6: 0.00386749968 | G6: 0.0002763078979 | H6: 0.002053172251 | I6: 2.527029712e-05 | J6: 0.009819370605 | L6: 0.003068528173 | M6: 0.003277271796 | N6: 0.0002512785457 | O6: 0.00159571298 | P6: 2.527029712e-05 | Q6: 0.008192791495
A7: 2004 | B7: 1 | C7: 1 | D7: 5 | E7: 0.003737234551 | F7: 0.003889184078 | G7: 0.0002763078979 | H7: 0.002025053412 | I7: 2.527029712e-05 | J7: 0.009953050236 | L7: 0.00318805266 | M7: 0.003295646889 | N7: 0.0002512785457 | O7: 0.001573859189 | P7: 2.527029712e-05 | Q7: 0.008308837283
A8: 2004 | B8: 1 | C8: 1 | D8: 6 | E8: 0.003932035475 | F8: 0.003899691455 | G8: 0.0002763078979 | H8: 0.002114143375 | I8: 2.527029712e-05 | J8: 0.0102474485 | L8: 0.003354227834 | M8: 0.003304550711 | N8: 0.0002512785457 | O8: 0.001643099367 | P8: 2.527029712e-05 | Q8: 0.008553156458
A9: 2004 | B9: 1 | C9: 1 | D9: 7 | E9: 0.004264247957 | F9: 0.004091169983 | G9: 0.0002763078979 | H9: 0.002298346571 | I9: 2.527029712e-05 | J9: 0.01095534271 | L9: 0.003637622112 | M9: 0.003466807267 | N9: 0.0002512785457 | O9: 0.00178626097 | P9: 2.527029712e-05 | Q9: 0.009141968895
A10: 2004 | B10: 1 | C10: 1 | D10: 8 | E10: 0.004651176289 | F10: 0.004375549688 | G10: 0.0002293355552 | H10: 0.002711889829 | I10: 2.431891082e-05 | J10: 0.01199227027 | L10: 0.003967691815 | M10: 0.003707787142 | N10: 0.000208561193 | O10: 0.002107664273 | P10: 2.431891082e-05 | Q10: 0.009991704423
A11: 2004 | B11: 1 | C11: 1 | D11: 9 | E11: 0.005149658916 | F11: 0.004734780735 | G11: 0 | H11: 0.002967707888 | I11: 1.967390711e-05 | J11: 0.01287182145 | L11: 0.00439292305 | M11: 0.004012195125 | N11: 0 | O11: 0.002306484512 | P11: 1.967390711e-05 | Q11: 0.01071160269
A12: 2004 | B12: 1 | C12: 1 | D12: 10 | E12: 0.005655262133 | F12: 0.004977652009 | G12: 0 | H12: 0.003190536713 | I12: 1.967390711e-05 | J12: 0.01384312476 | L12: 0.004824228514 | M12: 0.004218001264 | N12: 0 | O12: 0.002479665719 | P12: 1.967390711e-05 | Q12: 0.0115218955
A13: 2004 | B13: 1 | C13: 1 | D13: 11 | E13: 0.005789414696 | F13: 0.004999534091 | G13: 0 | H13: 0.003396044305 | I13: 1.967390711e-05 | J13: 0.014204667 | L13: 0.004938667527 | M13: 0.004236543872 | N13: 0 | O13: 0.002639384969 | P13: 1.967390711e-05 | Q13: 0.01181459637
A14: 2004 | B14: 1 | C14: 1 | D14: 12 | E14: 0.005731797399 | F14: 0.005112334397 | G14: 0 | H14: 0.003502188546 | I14: 1.967390711e-05 | J14: 0.01436599425 | L14: 0.00488951702 | M14: 0.004332129468 | N14: 0 | O14: 0.002721879627 | P14: 1.967390711e-05 | Q14: 0.01194352611
A15: 2004 | B15: 1 | C15: 1 | D15: 13 | E15: 0.00540017987 | F15: 0.005210413525 | G15: 0 | H15: 0.003423705766 | I15: 1.967390711e-05 | J15: 0.01405397307 | L15: 0.004606630267 | M15: 0.004415240518 | N15: 0 | O15: 0.002660883288 | P15: 1.967390711e-05 | Q15: 0.01168275407
A16: 2004 | B16: 1 | C16: 1 | D16: 14 | E16: 0.00511783915 | F16: 0.00518429305 | G16: 0 | H16: 0.003367586591 | I16: 1.967390711e-05 | J16: 0.0136893927 | L16: 0.004365779159 | M16: 0.004393106348 | N16: 0 | O16: 0.002617267806 | P16: 1.967390711e-05 | Q16: 0.01137615331
A17: 2004 | B17: 1 | C17: 1 | D17: 15 | E17: 0.005432365568 | F17: 0.005016823593 | G17: 0 | H17: 0.002953779084 | I17: 1.967390711e-05 | J17: 0.01342264215 | L17: 0.004634086318 | M17: 0.004251194784 | N17: 0 | O17: 0.00229565913 | P17: 1.967390711e-05 | Q17: 0.01118094023
A18: 2004 | B18: 1 | C18: 1 | D18: 16 | E18: 0.005328574242 | F18: 0.005297628243 | G18: 0 | H18: 0.002937787894 | I18: 1.967390711e-05 | J18: 0.01358366429 | L18: 0.004545546996 | M18: 0.0044891452 | N18: 0 | O18: 0.002283230875 | P18: 1.967390711e-05 | Q18: 0.01131792307
A19: 2004 | B19: 1 | C19: 1 | D19: 17 | E19: 0.005685961956 | F19: 0.005709660748 | G19: 0.0001160493171 | H19: 0.003237285164 | I19: 2.202439092e-05 | J19: 0.01477098158 | L19: 0.004850417037 | M19: 0.004838296492 | N19: 0.0001055369892 | O19: 0.00251599833 | P19: 2.202439092e-05 | Q19: 0.01231024885
A20: 2004 | B20: 1 | C20: 1 | D20: 18 | E20: 0.006646896423 | F20: 0.005501888205 | G20: 0.0002763078979 | H20: 0.00285989564 | I20: 2.527029712e-05 | J20: 0.01531025846 | L20: 0.005670143399 | M20: 0.004662232587 | N20: 0.0002512785457 | O20: 0.002222693489 | P20: 2.527029712e-05 | Q20: 0.01280634802
A21: 2004 | B21: 1 | C21: 1 | D21: 19 | E21: 0.006681719348 | F21: 0.0053188503 | G21: 0.0002763078979 | H21: 0.002611628979 | I21: 2.527029712e-05 | J21: 0.01491377682 | L21: 0.00569984914 | M21: 0.004507128511 | N21: 0.0002512785457 | O21: 0.002029742151 | P21: 2.527029712e-05 | Q21: 0.01248799835
A22: 2004 | B22: 1 | C22: 1 | D22: 20 | E22: 0.006400580612 | F22: 0.00511300162 | G22: 0.0002763078979 | H22: 0.00269423617 | I22: 2.527029712e-05 | J22: 0.0145093966 | L22: 0.005460023385 | M22: 0.004332694865 | N22: 0.0002512785457 | O22: 0.002093943957 | P22: 2.527029712e-05 | Q22: 0.01213794075
A23: 2004 | B23: 1 | C23: 1 | D23: 21 | E23: 0.006015284644 | F23: 0.005214422161 | G23: 0.0002763078979 | H23: 0.002430630909 | I23: 2.527029712e-05 | J23: 0.01396191591 | L23: 0.005131346172 | M23: 0.004418637387 | N23: 0.0002512785457 | O23: 0.001889071552 | P23: 2.527029712e-05 | Q23: 0.01169033366
A24: 2004 | B24: 1 | C24: 1 | D24: 22 | E24: 0.00552426704 | F24: 0.005017149484 | G24: 0.0002763078979 | H24: 0.002318060839 | I24: 2.527029712e-05 | J24: 0.01316105556 | L24: 0.004712482985 | M24: 0.00425147094 | N24: 0.0002512785457 | O24: 0.001801582778 | P24: 2.527029712e-05 | Q24: 0.01101681525
A25: 2004 | B25: 1 | C25: 1 | D25: 23 | E25: 0.005002630356 | F25: 0.004872678637 | G25: 0.0002763078979 | H25: 0.002194243222 | I25: 2.527029712e-05 | J25: 0.01237113041 | L25: 0.004267500151 | M25: 0.004129048116 | N25: 0.0002512785457 | O25: 0.00170535248 | P25: 2.527029712e-05 | Q25: 0.01035317929
A26: 2004 | B26: 1 | C26: 1 | D26: 24 | E26: 0.004036013464 | F26: 0.004768001701 | G26: 0.0002763078979 | H26: 0.002275396915 | I26: 2.527029712e-05 | J26: 0.01138099028 | L26: 0.003442926389 | M26: 0.004040346165 | N26: 0.0002512785457 | O26: 0.001768424637 | P26: 2.527029712e-05 | Q26: 0.009502975736
A27: 2004 | B27: 1 | C27: 2 | D27: 1 | E27: 0.003550051315 | F27: 0.004871297944 | G27: 0.0002763078979 | H27: 0.001394075927 | I27: 2.527029712e-05 | J27: 0.01011700338 | L27: 0.003028375763 | M27: 0.004127878134 | N27: 0.0002512785457 | O27: 0.001083467327 | P27: 2.527029712e-05 | Q27: 0.00849099977
A28: 2004 | B28: 1 | C28: 2 | D28: 2 | E28: 0.003236690521 | F28: 0.004645847806 | G28: 0.0002763078979 | H28: 0.001552497607 | I28: 2.527029712e-05 | J28: 0.009736614129 | L28: 0.002761062942 | M28: 0.003936834452 | N28: 0.0002512785457 | O28: 0.001206591693 | P28: 2.527029712e-05 | Q28: 0.008155767633
A29: 2004 | B29: 1 | C29: 2 | D29: 3 | E29: 0.003236632341 | F29: 0.004556415575 | G29: 0.0002763078979 | H29: 0.001453260412 | I29: 2.527029712e-05 | J29: 0.009547886523 | L29: 0.002761013311 | M29: 0.003861050676 | N29: 0.0002512785457 | O29: 0.001129465149 | P29: 2.527029712e-05 | Q29: 0.008002807682
A30: 2004 | B30: 1 | C30: 2 | D30: 4 | E30: 0.003313736395 | F30: 0.004431719199 | G30: 0.0002763078979 | H30: 0.001439216396 | I30: 2.527029712e-05 | J30: 0.009486250185 | L30: 0.002826787022 | M30: 0.003755384497 | N30: 0.0002512785457 | O30: 0.001118550226 | P30: 2.527029712e-05 | Q30: 0.00795200029
A31: 2004 | B31: 1 | C31: 2 | D31: 5 | E31: 0.003384524285 | F31: 0.004554584367 | G31: 0.0002763078979 | H31: 0.001374707325 | I31: 2.527029712e-05 | J31: 0.009615394171 | L31: 0.002887172721 | M31: 0.003859498933 | N31: 0.0002512785457 | O31: 0.001068414168 | P31: 2.527029712e-05 | Q31: 0.008066364367
A32: 2004 | B32: 1 | C32: 2 | D32: 6 | E32: 0.003574540397 | F32: 0.00479449352 | G32: 0.0002763078979 | H32: 0.001229192574 | I32: 2.527029712e-05 | J32: 0.009899804686 | L32: 0.003049266206 | M32: 0.004062795007 | N32: 0.0002512785457 | O32: 0.000955320989 | P32: 2.527029712e-05 | Q32: 0.008318660747
A33: 2004 | B33: 1 | C33: 2 | D33: 7 | E33: 0.00382203668 | F33: 0.005309477431 | G33: 0.0002763078979 | H33: 0.001150591784 | I33: 2.527029712e-05 | J33: 0.01058368409 | L33: 0.003260393224 | M33: 0.004499186057 | N33: 0.0002512785457 | O33: 0.0008942329328 | P33: 2.527029712e-05 | Q33: 0.008905090759
A34: 2004 | B34: 1 | C34: 2 | D34: 8 | E34: 0.004095537485 | F34: 0.005846752071 | G34: 0.0002293355552 | H34: 0.001389490255 | I34: 2.431891082e-05 | J34: 0.01158543428 | L34: 0.003493703431 | M34: 0.004954465998 | N34: 0.000208561193 | O34: 0.001079903371 | P34: 2.431891082e-05 | Q34: 0.009736633993
A35: 2004 | B35: 1 | C35: 2 | D35: 9 | E35: 0.004235659512 | F35: 0.006550226475 | G35: 0 | H35: 0.001629586395 | I35: 1.967390711e-05 | J35: 0.01243514629 | L35: 0.003613234703 | M35: 0.005550581579 | N35: 0 | O35: 0.00126650463 | P35: 1.967390711e-05 | Q35: 0.01043032091
A36: 2004 | B36: 1 | C36: 2 | D36: 10 | E36: 0.004470502387 | F36: 0.00674845121 | G36: 0 | H36: 0.002134870898 | I36: 1.967390711e-05 | J36: 0.0133734984 | L36: 0.003813567715 | M36: 0.005718554789 | N36: 0 | O36: 0.001659208671 | P36: 1.967390711e-05 | Q36: 0.01119133117
A37: 2004 | B37: 1 | C37: 2 | D37: 11 | E37: 0.00495956066 | F37: 0.006798354273 | G37: 0 | H37: 0.00194518719 | I37: 1.967390711e-05 | J37: 0.01372277603 | L37: 0.004230759493 | M37: 0.005760842033 | N37: 0 | O37: 0.001511787648 | P37: 1.967390711e-05 | Q37: 0.01150338917
A38: 2004 | B38: 1 | C38: 2 | D38: 12 | E38: 0.004634907037 | F38: 0.006987306641 | G38: 0 | H38: 0.002236741884 | I38: 1.967390711e-05 | J38: 0.01387862947 | L38: 0.003953813309 | M38: 0.005920957952 | N38: 0 | O38: 0.001738382182 | P38: 1.967390711e-05 | Q38: 0.01161315344
A39: 2004 | B39: 1 | C39: 2 | D39: 13 | E39: 0.004358204823 | F39: 0.006959937012 | G39: 0 | H39: 0.002239378007 | I39: 1.967390711e-05 | J39: 0.01357719375 | L39: 0.003717772136 | M39: 0.005897765264 | N39: 0 | O39: 0.00174043096 | P39: 1.967390711e-05 | Q39: 0.01135596836
A40: 2004 | B40: 1 | C40: 2 | D40: 14 | E40: 0.00422848642 | F40: 0.006919676792 | G40: 0 | H40: 0.002057145771 | I40: 1.967390711e-05 | J40: 0.01322498289 | L40: 0.003607115688 | M40: 0.005863649247 | N40: 0 | O40: 0.001598801175 | P40: 1.967390711e-05 | Q40: 0.01106956611
A41: 2004 | B41: 1 | C41: 2 | D41: 15 | E41: 0.004421433075 | F41: 0.006611422083 | G41: 0 | H41: 0.001914751147 | I41: 1.967390711e-05 | J41: 0.01296728021 | L41: 0.003771709076 | M41: 0.005602437988 | N41: 0 | O41: 0.00148813294 | P41: 1.967390711e-05 | Q41: 0.01086228
A42: 2004 | B42: 1 | C42: 2 | D42: 16 | E42: 0.004338514884 | F42: 0.006689379132 | G42: 0 | H42: 0.00207527303 | I42: 1.967390711e-05 | J42: 0.01312284095 | L42: 0.003700975608 | M42: 0.005668497835 | N42: 0 | O42: 0.001612889571 | P42: 1.967390711e-05 | Q42: 0.01098236301
A43: 2004 | B43: 1 | C43: 2 | D43: 17 | E43: 0.004788865862 | F43: 0.006769443109 | G43: 0.0001105231592 | H43: 0.002579133001 | I43: 2.191246312e-05 | J43: 0.0142698776 | L43: 0.00408514808 | M43: 0.005736343067 | N43: 0.0001005114183 | O43: 0.002004486475 | P43: 2.191246312e-05 | Q43: 0.01192648904
A44: 2004 | B44: 1 | C44: 2 | D44: 18 | E44: 0.005781683421 | F44: 0.006555437881 | G44: 0.0002763078979 | H44: 0.002152160451 | I44: 2.527029712e-05 | J44: 0.01479085995 | L44: 0.004932072353 | M44: 0.005554997661 | N44: 0.0002512785457 | O44: 0.001672646007 | P44: 2.527029712e-05 | Q44: 0.01241099457
A45: 2004 | B45: 1 | C45: 2 | D45: 19 | E45: 0.005883141308 | F45: 0.006339512694 | G45: 0.0002763078979 | H45: 0.001883597055 | I45: 2.527029712e-05 | J45: 0.01440782925 | L45: 0.005018621133 | M45: 0.005372025306 | N45: 0.0002512785457 | O45: 0.001463920169 | P45: 2.527029712e-05 | Q45: 0.01210584515
A46: 2004 | B46: 1 | C46: 2 | D46: 20 | E46: 0.005801270519 | F46: 0.006020270026 | G46: 0.0002763078979 | H46: 0.00189404778 | I46: 2.527029712e-05 | J46: 0.01401716652 | L46: 0.004948781153 | M46: 0.005101502985 | N46: 0.0002512785457 | O46: 0.001472042409 | P46: 2.527029712e-05 | Q46: 0.01177360509
A47: 2004 | B47: 1 | C47: 2 | D47: 21 | E47: 0.005560631904 | F47: 0.005943001875 | G47: 0.0002763078979 | H47: 0.001683048975 | I47: 2.527029712e-05 | J47: 0.01348826095 | L47: 0.004743504078 | M47: 0.005036026901 | N47: 0.0002512785457 | O47: 0.001308055422 | P47: 2.527029712e-05 | Q47: 0.01133886495
A48: 2004 | B48: 1 | C48: 2 | D48: 22 | E48: 0.004999073684 | F48: 0.005750315166 | G48: 0.0002763078979 | H48: 0.001663602093 | I48: 2.527029712e-05 | J48: 0.01271456914 | L48: 0.004264466128 | M48: 0.004872746547 | N48: 0.0002512785457 | O48: 0.001292941423 | P48: 2.527029712e-05 | Q48: 0.01068143264
A49: 2004 | B49: 1 | C49: 2 | D49: 23 | E49: 0.00477307321 | F49: 0.005374196352 | G49: 0.0002763078979 | H49: 0.001502593426 | I49: 2.527029712e-05 | J49: 0.01195144118 | L49: 0.004071676138 | M49: 0.004554028076 | N49: 0.0002512785457 | O49: 0.001167806467 | P49: 2.527029712e-05 | Q49: 0.01004478923
A50: 2004 | B50: 1 | C50: 2 | D50: 24 | E50: 0.00398159951 | F50: 0.005020715695 | G50: 0.0002763078979 | H50: 0.001690998059 | I50: 2.527029712e-05 | J50: 0.01099489146 | L50: 0.003396508497 | M50: 0.004254492904 | N50: 0.0002512785457 | O50: 0.001314233402 | P50: 2.527029712e-05 | Q50: 0.009216513349
A51: 2004 | B51: 1 | C51: 3 | D51: 1 | E51: 0.003069092836 | F51: 0.004820449182 | G51: 0.0002763078979 | H51: 0.001830777171 | I51: 2.527029712e-05 | J51: 0.01002189738 | L51: 0.002618093525 | M51: 0.004084789516 | N51: 0.0002512785457 | O51: 0.001422868877 | P51: 2.527029712e-05 | Q51: 0.008377030464
A52: 2004 | B52: 1 | C52: 3 | D52: 2 | E52: 0.002792653342 | F52: 0.004768156717 | G52: 0.0002763078979 | H52: 0.001813936005 | I52: 2.527029712e-05 | J52: 0.009676324259 | L52: 0.002382276465 | M52: 0.004040477523 | N52: 0.0002512785457 | O52: 0.001409780025 | P52: 2.527029712e-05 | Q52: 0.008083812559
A53: 2004 | B53: 1 | C53: 3 | D53: 3 | E53: 0.002781800902 | F53: 0.004697066228 | G53: 0.0002763078979 | H53: 0.001677812043 | I53: 2.527029712e-05 | J53: 0.009458257368 | L53: 0.002373018777 | M53: 0.003980236315 | N53: 0.0002512785457 | O53: 0.00130398531 | P53: 2.527029712e-05 | Q53: 0.007908518947
A54: 2004 | B54: 1 | C54: 3 | D54: 4 | E54: 0.002783961424 | F54: 0.004576852859 | G54: 0.0002763078979 | H54: 0.001731139633 | I54: 2.527029712e-05 | J54: 0.00939353211 | L54: 0.002374861813 | M54: 0.00387836898 | N54: 0.0002512785457 | O54: 0.001345431188 | P54: 2.527029712e-05 | Q54: 0.007849940527
A55: 2004 | B55: 1 | C55: 3 | D55: 5 | E55: 0.002876661706 | F55: 0.004646509698 | G55: 0.0002763078979 | H55: 0.001711288997 | I55: 2.527029712e-05 | J55: 0.009536038596 | L55: 0.002453939906 | M55: 0.003937395331 | N55: 0.0002512785457 | O55: 0.001330003395 | P55: 2.527029712e-05 | Q55: 0.007972617178
A56: 2004 | B56: 1 | C56: 3 | D56: 6 | E56: 0.002937527723 | F56: 0.00475586269 | G56: 0.0002763078979 | H56: 0.001801640372 | I56: 2.527029712e-05 | J56: 0.00979660898 | L56: 0.002505861739 | M56: 0.004030059715 | N56: 0.0002512785457 | O56: 0.001400223934 | P56: 2.527029712e-05 | Q56: 0.008187423933
A57: 2004 | B57: 1 | C57: 3 | D57: 7 | E57: 0.00343343254 | F57: 0.00506211505 | G57: 0.0002763078979 | H57: 0.001751186873 | I57: 2.527029712e-05 | J57: 0.01054831266 | L57: 0.00292889397 | M57: 0.004289574209 | N57: 0.0002512785457 | O57: 0.001361011782 | P57: 2.527029712e-05 | Q57: 0.008830758506
A58: 2004 | B58: 1 | C58: 3 | D58: 8 | E58: 0.003701137338 | F58: 0.005470040184 | G58: 0.0002293355552 | H58: 0.001894353944 | I58: 2.431891082e-05 | J58: 0.01131918593 | L58: 0.003157259887 | M58: 0.004635244965 | N58: 0.000208561193 | O58: 0.001472280358 | P58: 2.431891082e-05 | Q58: 0.009473346403
A59: 2004 | B59: 1 | C59: 3 | D59: 9 | E59: 0.004239881614 | F59: 0.005741161125 | G59: 0 | H59: 0.002238237096 | I59: 1.967390711e-05 | J59: 0.01223895374 | L59: 0.003616836373 | M59: 0.004864989525 | N59: 0 | O59: 0.001739544251 | P59: 1.967390711e-05 | Q59: 0.01022137015
A60: 2004 | B60: 1 | C60: 3 | D60: 10 | E60: 0.004640432508 | F60: 0.005811586114 | G60: 0 | H60: 0.002408960415 | I60: 1.967390711e-05 | J60: 0.01288065294 | L60: 0.003958526819 | M60: 0.004924666797 | N60: 0 | O60: 0.001872229376 | P60: 1.967390711e-05 | Q60: 0.01075542299
A61: 2004 | B61: 1 | C61: 3 | D61: 11 | E61: 0.00509282633 | F61: 0.005900775995 | G61: 0 | H61: 0.002156559232 | I61: 1.967390711e-05 | J61: 0.01316983546 | L61: 0.004344441941 | M61: 0.005000245208 | N61: 0 | O61: 0.001676064713 | P61: 1.967390711e-05 | Q61: 0.01102075186
A62: 2004 | B62: 1 | C62: 3 | D62: 12 | E62: 0.00464972207 | F62: 0.005980886741 | G62: 0 | H62: 0.002392046411 | I62: 1.967390711e-05 | J62: 0.01304232913 | L62: 0.003966451292 | M62: 0.005068130072 | N62: 0 | O62: 0.001859083915 | P62: 1.967390711e-05 | Q62: 0.01089366528
A63: 2004 | B63: 1 | C63: 3 | D63: 13 | E63: 0.00457777846 | F63: 0.005767368355 | G63: 0 | H63: 0.002189981882 | I63: 1.967390711e-05 | J63: 0.0125548026 | L63: 0.003905079704 | M63: 0.00488719721 | N63: 0 | O63: 0.001702040592 | P63: 1.967390711e-05 | Q63: 0.01049431751
A64: 2004 | B64: 1 | C64: 3 | D64: 14 | E64: 0.003966924324 | F64: 0.005829690221 | G64: 0 | H64: 0.002528782719 | I64: 1.967390711e-05 | J64: 0.01234507117 | L64: 0.003383989811 | M64: 0.004940007995 | N64: 0 | O64: 0.001965354541 | P64: 1.967390711e-05 | Q64: 0.01028935235
A65: 2004 | B65: 1 | C65: 3 | D65: 15 | E65: 0.003881305448 | F65: 0.00578117851 | G65: 0 | H65: 0.002207611541 | I65: 1.967390711e-05 | J65: 0.01188976941 | L65: 0.00331095252 | M65: 0.004898899766 | N65: 0 | O65: 0.001715742256 | P65: 1.967390711e-05 | Q65: 0.009925594543
A66: 2004 | B66: 1 | C66: 3 | D66: 16 | E66: 0.004198331402 | F66: 0.005683968501 | G66: 0 | H66: 0.002190028871 | I66: 1.967390711e-05 | J66: 0.01209200268 | L66: 0.003581391911 | M66: 0.004816525197 | N66: 0 | O66: 0.001702077112 | P66: 1.967390711e-05 | Q66: 0.01009999422
A67: 2004 | B67: 1 | C67: 3 | D67: 17 | E67: 0.004602867804 | F67: 0.005727919248 | G67: 0.0001049970012 | H67: 0.002323342106 | I67: 2.180053531e-05 | J67: 0.01278092669 | L67: =E67*T$5 -> 0.003926482201 | M67: =F67*U$5 -> 0.004853768521 | N67: =G67*V$5 -> 9.548584738e-05 | O67: =H67*X$5 -> 0.001805687347 | P67: =I67 -> 2.180053531e-05 | Q67: =SUM(L67:O67) -> 0.01068142392
A68: 2004 | B68: 1 | C68: 3 | D68: 18 | E68: 0.005251457642 | F68: 0.00566036907 | G68: 0.0002763078979 | H68: 0.002456733381 | I68: 2.527029712e-05 | J68: 0.01367013829 | L68: 0.004479762583 | M68: 0.004796527329 | N68: 0.0002512785457 | O68: 0.001909358235 | P68: 2.527029712e-05 | Q68: 0.01143692669
A69: 2004 | B69: 1 | C69: 3 | D69: 19 | E69: 0.005477585162 | F69: 0.005529885926 | G69: 0.0002763078979 | H69: 0.002099131164 | I69: 2.527029712e-05 | J69: 0.01340818045 | L69: 0.004672660949 | M69: 0.004685957512 | N69: 0.0002512785457 | O69: 0.001631431967 | P69: 2.527029712e-05 | Q69: 0.01124132897
A70: 2004 | B70: 1 | C70: 3 | D70: 20 | E70: 0.005323396993 | F70: 0.005196330727 | G70: 0.0002763078979 | H70: 0.001848225311 | I70: 2.527029712e-05 | J70: 0.01266953123 | L70: 0.004541130537 | M70: 0.004403306928 | N70: 0.0002512785457 | O70: 0.001436429465 | P70: 2.527029712e-05 | Q70: 0.01063214548
A71: 2004 | B71: 1 | C71: 3 | D71: 21 | E71: 0.004896198631 | F71: 0.005162487795 | G71: 0.0002763078979 | H71: 0.002106201379 | I71: 2.527029712e-05 | J71: 0.012466466 | L71: 0.004176708434 | M71: 0.004374628843 | N71: 0.0002512785457 | O71: 0.001636926895 | P71: 2.527029712e-05 | Q71: 0.01043954272
A72: 2004 | B72: 1 | C72: 3 | D72: 22 | E72: 0.004674332974 | F72: 0.004787825218 | G72: 0.0002763078979 | H72: 0.00191991199 | I72: 2.527029712e-05 | J72: 0.01168364838 | L72: 0.003987445654 | M72: 0.00405714437 | N72: 0.0002512785457 | O72: 0.001492143916 | P72: 2.527029712e-05 | Q72: 0.009788012486
A73: 2004 | B73: 1 | C73: 3 | D73: 23 | E73: 0.004403164322 | F73: 0.004671265065 | G73: 0.0002763078979 | H73: 0.001567324643 | I73: 2.527029712e-05 | J73: 0.01094333223 | L73: 0.003756124893 | M73: 0.003958372725 | N73: 0.0002512785457 | O73: 0.001218115176 | P73: 2.527029712e-05 | Q73: 0.00918389134
A74: 2004 | B74: 1 | C74: 3 | D74: 24 | E74: 0.003277543299 | F74: 0.004700369411 | G74: 0.0002763078979 | H74: 0.001927415852 | I74: 2.527029712e-05 | J74: 0.01020690676 | L74: 0.002795912456 | M74: 0.003983035391 | N74: 0.0002512785457 | O74: 0.001497975871 | P74: 2.527029712e-05 | Q74: 0.008528202264
A75: 2004 | B75: 1 | C75: 4 | D75: 1 | E75: 0.002631135535 | F75: 0.004398765858 | G75: 0.0002763078979 | H75: 0.001508055965 | I75: 2.527029712e-05 | J75: 0.008839535552 | L75: 0.002244493495 | M75: 0.003727460239 | N75: 0.0002512785457 | O75: 0.001172051919 | P75: 2.527029712e-05 | Q75: 0.007395284199
A76: 2004 | B76: 1 | C76: 4 | D76: 2 | E76: 0.00258536454 | F76: 0.004261516208 | G76: 0.0002763078979 | H76: 0.00149206159 | I76: 2.527029712e-05 | J76: 0.008640520533 | L76: 0.00220544849 | M76: 0.003611156569 | N76: 0.0002512785457 | O76: 0.001159621189 | P76: 2.527029712e-05 | Q76: 0.007227504794
A77: 2004 | B77: 1 | C77: 4 | D77: 3 | E77: 0.002358514157 | F77: 0.004325601164 | G77: 0.0002763078979 | H77: 0.001515414095 | I77: 2.527029712e-05 | J77: 0.008501107611 | L77: 0.002011933484 | M77: 0.003665461375 | N77: 0.0002512785457 | O77: 0.001177770613 | P77: 2.527029712e-05 | Q77: 0.007106444018
A78: 2004 | B78: 1 | C78: 4 | D78: 4 | E78: 0.002375414124 | F78: 0.004398407 | G78: 0.0002763078979 | H78: 0.001345900495 | I78: 2.527029712e-05 | J78: 0.008421299815 | L78: 0.002026350023 | M78: 0.003727156148 | N78: 0.0002512785457 | O78: 0.001046025675 | P78: 2.527029712e-05 | Q78: 0.007050810391
A79: 2004 | B79: 1 | C79: 4 | D79: 5 | E79: 0.002470948005 | F79: 0.004245212361 | G79: 0.0002763078979 | H79: 0.00135203968 | I79: 2.527029712e-05 | J79: 0.008369778241 | L79: 0.00210784532 | M79: 0.003597340889 | N79: 0.0002512785457 | O79: 0.001050797012 | P79: 2.527029712e-05 | Q79: 0.007007261767
A80: 2004 | B80: 1 | C80: 4 | D80: 6 | E80: 0.002551249711 | F80: 0.004329932481 | G80: 0.0002763078979 | H80: 0.001377446314 | I80: 2.527029712e-05 | J80: 0.008560206701 | L80: 0.002176346792 | M80: 0.00366913168 | N80: 0.0002512785457 | O80: 0.001070542894 | P80: 2.527029712e-05 | Q80: 0.007167299911
A81: 2004 | B81: 1 | C81: 4 | D81: 7 | E81: 0.002729179646 | F81: 0.004532171164 | G81: 0.0002763078979 | H81: 0.001549116634 | I81: 2.527029712e-05 | J81: 0.009112045639 | L81: 0.002328130148 | M81: 0.00384050626 | N81: 0.0002512785457 | O81: 0.001203964022 | P81: 2.527029712e-05 | Q81: 0.007623878975
A82: 2004 | B82: 1 | C82: 4 | D82: 8 | E82: 0.003172069523 | F82: 0.004623550642 | G82: 0.0002293355552 | H82: 0.001469390533 | I82: 2.431891082e-05 | J82: 0.009518665164 | L82: 0.002705937918 | M82: 0.003917940108 | N82: 0.000208561193 | O82: 0.001142001381 | P82: 2.431891082e-05 | Q82: 0.007974440601
A83: 2004 | B83: 1 | C83: 4 | D83: 9 | E83: 0.00368656208 | F83: 0.004925542723 | G83: 0 | H83: 0.001357907039 | I83: 1.967390711e-05 | J83: 0.009989685749 | L83: 0.003144826444 | M83: 0.004173844494 | N83: 0 | O83: 0.001055357088 | P83: 1.967390711e-05 | Q83: 0.008374028026
A84: 2004 | B84: 1 | C84: 4 | D84: 10 | E84: 0.004126194648 | F84: 0.005050043198 | G84: 0 | H84: 0.001352685827 | I84: 1.967390711e-05 | J84: 0.01054859758 | L84: 0.003519855562 | M84: 0.004279344669 | N84: 0 | O84: 0.001051299194 | P84: 1.967390711e-05 | Q84: 0.008850499426
A85: 2004 | B85: 1 | C85: 4 | D85: 11 | E85: 0.004091934777 | F85: 0.005318334002 | G85: 0 | H85: 0.001696759646 | I85: 1.967390711e-05 | J85: 0.01112670233 | L85: 0.003490630136 | M85: 0.004506691007 | N85: 0 | O85: 0.001318711272 | P85: 1.967390711e-05 | Q85: 0.009316032414
A86: 2004 | B86: 1 | C86: 4 | D86: 12 | E86: 0.004140525939 | F86: 0.005428770766 | G86: 0 | H86: 0.001777410044 | I86: 1.967390711e-05 | J86: 0.01136638066 | L86: 0.003532080888 | M86: 0.004600273766 | N86: 0 | O86: 0.001381392271 | P86: 1.967390711e-05 | Q86: 0.009513746925
A87: 2004 | B87: 1 | C87: 4 | D87: 13 | E87: 0.003887651257 | F87: 0.005456270302 | G87: 0 | H87: 0.001688602554 | I87: 1.967390711e-05 | J87: 0.01105219802 | L87: 0.003316365821 | M87: 0.004623576535 | N87: 0 | O87: 0.00131237163 | P87: 1.967390711e-05 | Q87: 0.009252313986
A88: 2004 | B88: 1 | C88: 4 | D88: 14 | E88: 0.003864555085 | F88: 0.005307696846 | G88: 0 | H88: 0.001697624714 | I88: 1.967390711e-05 | J88: 0.01088955055 | L88: 0.003296663602 | M88: 0.004497677211 | N88: 0 | O88: 0.001319383598 | P88: 1.967390711e-05 | Q88: 0.009113724411
A89: 2004 | B89: 1 | C89: 4 | D89: 15 | E89: 0.003962319172 | F89: 0.005228692543 | G89: 0 | H89: 0.001543998357 | I89: 1.967390711e-05 | J89: 0.01075468398 | L89: 0.00338006138 | M89: 0.004430729933 | N89: 0 | O89: 0.001199986128 | P89: 1.967390711e-05 | Q89: 0.009010777441
A90: 2004 | B90: 1 | C90: 4 | D90: 16 | E90: 0.004193738127 | F90: 0.005372660065 | G90: 0 | H90: 0.001637613469 | I90: 1.967390711e-05 | J90: 0.01122368557 | L90: 0.003577473612 | M90: 0.004552726246 | N90: 0 | O90: 0.001272743223 | P90: 1.967390711e-05 | Q90: 0.009402943082
A91: 2004 | B91: 1 | C91: 4 | D91: 17 | E91: 0.004643551435 | F91: 0.005533321772 | G91: 0.0001022339222 | H91: 0.001771934232 | I91: 2.174457141e-05 | J91: 0.01207278593 | L91: 0.003961187424 | M91: 0.004688869007 | N91: 9.297306192e-05 | O91: 0.001377136503 | P91: 2.174457141e-05 | Q91: 0.01012016599
A92: 2004 | B92: 1 | C92: 4 | D92: 18 | E92: 0.005580061133 | F92: 0.005173103968 | G92: 0.0002763078979 | H92: 0.001905279156 | I92: 2.527029712e-05 | J92: 0.01296002245 | L92: 0.004760078206 | M92: 0.004383624857 | N92: 0.0002512785457 | O92: 0.001480771366 | P92: 2.527029712e-05 | Q92: 0.01087575298
A93: 2004 | B93: 1 | C93: 4 | D93: 19 | E93: 0.005723256569 | F93: 0.004996853311 | G93: 0.0002763078979 | H93: 0.00175422016 | I93: 2.527029712e-05 | J93: 0.01277590824 | L93: 0.004882231254 | M93: 0.004234272212 | N93: 0.0002512785457 | O93: 0.001363369234 | P93: 2.527029712e-05 | Q93: 0.01073115125
A94: 2004 | B94: 1 | C94: 4 | D94: 20 | E94: 0.005574782807 | F94: 0.0050062891 | G94: 0.0002763078979 | H94: 0.001657367304 | I94: 2.527029712e-05 | J94: 0.01254001741 | L94: 0.004755575524 | M94: 0.004242267984 | N94: 0.0002512785457 | O94: 0.001288095783 | P94: 2.527029712e-05 | Q94: 0.01053721784
A95: 2004 | B95: 1 | C95: 4 | D95: 21 | E95: 0.005248849026 | F95: 0.005043193418 | G95: 0.0002763078979 | H95: 0.001702427031 | I95: 2.527029712e-05 | J95: 0.01229604767 | L95: 0.004477537299 | M95: 0.00427354025 | N95: 0.0002512785457 | O95: 0.001323115929 | P95: 2.527029712e-05 | Q95: 0.01032547202
A96: 2004 | B96: 1 | C96: 4 | D96: 22 | E96: 0.004786505894 | F96: 0.00505754789 | G96: 0.0002763078979 | H96: 0.001593523561 | I96: 2.527029712e-05 | J96: 0.01173915554 | L96: 0.004083134906 | M96: 0.004285704054 | N96: 0.0002512785457 | O96: 0.001238476815 | P96: 2.527029712e-05 | Q96: 0.00985859432
A97: 2004 | B97: 1 | C97: 4 | D97: 23 | E97: 0.004004888141 | F97: 0.004946180647 | G97: 0.0002763078979 | H97: 0.001707872193 | I97: 2.527029712e-05 | J97: 0.01096051918 | L97: 0.003416374893 | M97: 0.004191332817 | N97: 0.0002512785457 | O97: 0.001327347876 | P97: 2.527029712e-05 | Q97: 0.009186334132
A98: 2004 | B98: 1 | C98: 4 | D98: 24 | E98: 0.003080691769 | F98: 0.005239574735 | G98: 0.0002763078979 | H98: 0.001676972818 | I98: 2.527029712e-05 | J98: 0.01029881752 | L98: 0.00262798801 | M98: 0.004439951369 | N98: 0.0002512785457 | O98: 0.00130333307 | P98: 2.527029712e-05 | Q98: 0.008622550994
A99: 2004 | B99: 1 | C99: 5 | D99: 1 | E99: 0.003228461436 | F99: 0.005307663837 | G99: 0.0002763078979 | H99: 0.001466982936 | I99: 2.527029712e-05 | J99: 0.0103046864 | L99: 0.00275404311 | M99: 0.00449764924 | N99: 0.0002512785457 | O99: 0.001140130211 | P99: 2.527029712e-05 | Q99: 0.008643101107
A100: 2004 | B100: 1 | C100: 5 | D100: 2 | E100: 0.003122309558 | F100: 0.005149940412 | G100: 0.0002763078979 | H100: 0.001447208796 | I100: 2.527029712e-05 | J100: 0.01002103696 | L100: 0.002663490117 | M100: 0.004363996344 | N100: 0.0002512785457 | O100: 0.00112476187 | P100: 2.527029712e-05 | Q100: 0.008403526877
A101: 2004 | B101: 1 | C101: 5 | D101: 3 | E101: 0.003098101408 | F101: 0.005184822274 | G101: 0.0002763078979 | H101: 0.001492003679 | I101: 2.527029712e-05 | J101: 0.01007650556 | L101: 0.002642839324 | M101: 0.004393554806 | N101: 0.0002512785457 | O101: 0.00115957618 | P101: 2.527029712e-05 | Q101: 0.008447248856
A102: 2004 | B102: 1 | C102: 5 | D102: 4 | E102: 0.003109001467 | F102: 0.005100496535 | G102: 0.0002763078979 | H102: 0.001440623633 | I102: 2.527029712e-05 | J102: 0.00995169983 | L102: 0.002652137633 | M102: 0.004322098209 | N102: 0.0002512785457 | O102: 0.001119643922 | P102: 2.527029712e-05 | Q102: 0.008345158309
A103: 2004 | B103: 1 | C103: 5 | D103: 5 | E103: 0.003173066448 | F103: 0.005416542889 | G103: 0.0002763078979 | H103: 0.001290268501 | I103: 2.527029712e-05 | J103: 0.01018145603 | L103: 0.002706788346 | M103: 0.004589912013 | N103: 0.0002512785457 | O103: 0.001002788827 | P103: 2.527029712e-05 | Q103: 0.008550767732
A104: 2004 | B104: 1 | C104: 5 | D104: 6 | E104: 0.003520507048 | F104: 0.005569006522 | G104: 0.0002763078979 | H104: 0.001350101083 | I104: 2.527029712e-05 | J104: 0.01074119285 | L104: 0.003003172989 | M104: 0.004719107826 | N104: 0.0002512785457 | O104: 0.001049290346 | P104: 2.527029712e-05 | Q104: 0.009022849707
A105: 2004 | B105: 1 | C105: 5 | D105: 7 | E105: 0.00423083725 | F105: 0.005972296033 | G105: 0.0002763078979 | H105: 0.001383687531 | I105: 2.527029712e-05 | J105: 0.01188839901 | L105: 0.003609121067 | M105: 0.005060850412 | N105: 0.0002512785457 | O105: 0.001075393529 | P105: 2.527029712e-05 | Q105: 0.009996643553
A106: 2004 | B106: 1 | C106: 5 | D106: 8 | E106: 0.004472048248 | F106: 0.006867596812 | G106: 0.0002293355552 | H106: 0.002013073178 | I106: 2.431891082e-05 | J106: 0.0136063727 | L106: 0.003814886413 | M106: 0.005819517311 | N106: 0.000208561193 | O106: 0.001564548224 | P106: 2.431891082e-05 | Q106: 0.01140751314
A107: 2004 | B107: 1 | C107: 5 | D107: 9 | E107: 0.004309412457 | F107: 0.007839570156 | G107: 0 | H107: 0.002532603552 | I107: 1.967390711e-05 | J107: 0.01470126007 | L107: 0.003676149746 | M107: 0.006643155601 | N107: 0 | O107: 0.00196832407 | P107: 1.967390711e-05 | Q107: 0.01228762942
A108: 2004 | B108: 1 | C108: 5 | D108: 10 | E108: 0.004261044817 | F108: 0.008071580167 | G108: 0 | H108: 0.002805952997 | I108: 1.967390711e-05 | J108: 0.01515825189 | L108: 0.003634889669 | M108: 0.00683975804 | N108: 0 | O108: 0.002180769595 | P108: 1.967390711e-05 | Q108: 0.0126554173
A109: 2004 | B109: 1 | C109: 5 | D109: 11 | E109: 0.004218285816 | F109: 0.008050263423 | G109: 0 | H109: 0.003036751151 | I109: 1.967390711e-05 | J109: 0.0153249743 | L109: 0.00359841405 | M109: 0.006821694492 | N109: 0 | O109: 0.002360144516 | P109: 1.967390711e-05 | Q109: 0.01278025306
A110: 2004 | B110: 1 | C110: 5 | D110: 12 | E110: 0.004173447894 | F110: 0.007943705266 | G110: 0 | H110: 0.002897249216 | I110: 1.967390711e-05 | J110: 0.01503407628 | L110: 0.003560165004 | M110: 0.006731398417 | N110: 0 | O110: 0.002251724461 | P110: 1.967390711e-05 | Q110: 0.01254328788
A111: 2004 | B111: 1 | C111: 5 | D111: 13 | E111: 0.003978649463 | F111: 0.007956569337 | G111: 0 | H111: 0.002647090913 | I111: 1.967390711e-05 | J111: 0.01460198362 | L111: 0.003393991955 | M111: 0.006742299273 | N111: 0 | O111: 0.00205730295 | P111: 1.967390711e-05 | Q111: 0.01219359418
A112: 2004 | B112: 1 | C112: 5 | D112: 14 | E112: 0.003941211755 | F112: 0.008030040076 | G112: 0 | H112: 0.002504215627 | I112: 1.967390711e-05 | J112: 0.01449514136 | L112: 0.003362055671 | M112: 0.006804557476 | N112: 0 | O112: 0.001946261147 | P112: 1.967390711e-05 | Q112: 0.01211287429
A113: 2004 | B113: 1 | C113: 5 | D113: 15 | E113: 0.003904120751 | F113: 0.007778772732 | G113: 0 | H113: 0.002439270877 | I113: 1.967390711e-05 | J113: 0.01414183827 | L113: 0.003330415143 | M113: 0.00659163661 | N113: 0 | O113: 0.001895786483 | P113: 1.967390711e-05 | Q113: 0.01181783824
A114: 2004 | B114: 1 | C114: 5 | D114: 16 | E114: 0.004085314631 | F114: 0.007586261246 | G114: 0 | H114: 0.002593990729 | I114: 1.967390711e-05 | J114: 0.01428524051 | L114: 0.003484982812 | M114: 0.006428504738 | N114: 0 | O114: 0.00201603381 | P114: 1.967390711e-05 | Q114: 0.01192952136
A115: 2004 | B115: 1 | C115: 5 | D115: 17 | E115: 0.004660000282 | F115: 0.00766560461 | G115: 9.670776426e-05 | H115: 0.002486440752 | I115: 2.163264361e-05 | J115: 0.01493038605 | L115: 0.003975219133 | M115: 0.006495739331 | N115: 8.794749101e-05 | O115: 0.001932446622 | P115: 2.163264361e-05 | Q115: 0.01249135258
A116: 2004 | B116: 1 | C116: 5 | D116: 18 | E116: 0.005938556135 | F116: 0.007284179779 | G116: 0.0002763078979 | H116: 0.002057521627 | I116: 2.527029712e-05 | J116: 0.01558183574 | L116: 0.00506589282 | M116: 0.006172524608 | N116: 0.0002512785457 | O116: 0.001599093288 | P116: 2.527029712e-05 | Q116: 0.01308878926
A117: 2004 | B117: 1 | C117: 5 | D117: 19 | E117: 0.006600428233 | F117: 0.006592679519 | G117: 0.0002763078979 | H117: 0.001309318417 | I117: 2.527029712e-05 | J117: 0.01480400436 | L117: 0.005630503651 | M117: 0.005586555769 | N117: 0.0002512785457 | O117: 0.001017594307 | P117: 2.527029712e-05 | Q117: 0.01248593227
A118: 2004 | B118: 1 | C118: 5 | D118: 20 | E118: 0.005952096766 | F118: 0.006474894643 | G118: 0.0002763078979 | H118: 0.00165311257 | I118: 2.527029712e-05 | J118: 0.01438168217 | L118: 0.005077443673 | M118: 0.005486746309 | N118: 0.0002512785457 | O118: 0.00128478903 | P118: 2.527029712e-05 | Q118: 0.01210025756
A119: 2004 | B119: 1 | C119: 5 | D119: 21 | E119: 0.005548434411 | F119: 0.006595252565 | G119: 0.0002763078979 | H119: 0.001476903285 | I119: 2.527029712e-05 | J119: 0.01392216846 | L119: 0.004733098991 | M119: 0.005588736136 | N119: 0.0002512785457 | O119: 0.001147840246 | P119: 2.527029712e-05 | Q119: 0.01172095392
A120: 2004 | B120: 1 | C120: 5 | D120: 22 | E120: 0.00519418977 | F120: 0.006164747979 | G120: 0.0002763078979 | H120: 0.001479410288 | I120: 2.527029712e-05 | J120: 0.01313992623 | L120: 0.004430910151 | M120: 0.00522393183 | N120: 0.0002512785457 | O120: 0.001149788674 | P120: 2.527029712e-05 | Q120: 0.0110559092
A121: 2004 | B121: 1 | C121: 5 | D121: 23 | E121: 0.004529248271 | F121: 0.006012067872 | G121: 0.0002763078979 | H121: 0.001663230569 | I121: 2.527029712e-05 | J121: 0.01250612491 | L121: 0.003863680965 | M121: 0.00509455258 | N121: 0.0002512785457 | O121: 0.001292652677 | P121: 2.527029712e-05 | Q121: 0.01050216477
A122: 2004 | B122: 1 | C122: 5 | D122: 24 | E122: 0.003687450142 | F122: 0.005720646424 | G122: 0.0002763078979 | H122: 0.001676348614 | I122: 2.527029712e-05 | J122: 0.01138602338 | L122: 0.003145584007 | M122: 0.004847605619 | N122: 0.0002512785457 | O122: 0.001302847942 | P122: 2.527029712e-05 | Q122: 0.009547316114
A123: 2004 | B123: 1 | C123: 6 | D123: 1 | E123: 0.003658713053 | F123: 0.005968429985 | G123: 0.0002763078979 | H123: 0.001957464727 | I123: 2.527029712e-05 | J123: 0.01188618596 | L123: 0.003121069797 | M123: 0.00505757437 | N123: 0.0002512785457 | O123: 0.001521329674 | P123: 2.527029712e-05 | Q123: 0.009951252386
A124: 2004 | B124: 1 | C124: 6 | D124: 2 | E124: 0.00365140486 | F124: 0.005758893578 | G124: 0.0002763078979 | H124: 0.001955967507 | I124: 2.527029712e-05 | J124: 0.01166784414 | L124: 0.003114835534 | M124: 0.004880015788 | N124: 0.0002512785457 | O124: 0.001520166045 | P124: 2.527029712e-05 | Q124: 0.009766295912
A125: 2004 | B125: 1 | C125: 6 | D125: 3 | E125: 0.003566493639 | F125: 0.005659561951 | G125: 0.0002763078979 | H125: 0.001926424881 | I125: 2.527029712e-05 | J125: 0.01145405867 | L125: 0.003042401909 | M125: 0.004795843386 | N125: 0.0002512785457 | O125: 0.001497205695 | P125: 2.527029712e-05 | Q125: 0.009586729535
A126: 2004 | B126: 1 | C126: 6 | D126: 4 | E126: 0.003689764587 | F126: 0.005488185225 | G126: 0.0002763078979 | H126: 0.001862379468 | I126: 2.527029712e-05 | J126: 0.01134190747 | L126: 0.003147558347 | M126: 0.004650620849 | N126: 0.0002512785457 | O126: 0.00144742999 | P126: 2.527029712e-05 | Q126: 0.009496887732
A127: 2004 | B127: 1 | C127: 6 | D127: 5 | E127: 0.003857996633 | F127: 0.00559228803 | G127: 0.0002763078979 | H127: 0.001804181349 | I127: 2.527029712e-05 | J127: 0.01155604421 | L127: 0.003291068906 | M127: 0.00473883629 | N127: 0.0002512785457 | O127: 0.001402198766 | P127: 2.527029712e-05 | Q127: 0.009683382508
A128: 2004 | B128: 1 | C128: 6 | D128: 6 | E128: 0.004169342139 | F128: 0.005851416188 | G128: 0.0002763078979 | H128: 0.001832659767 | I128: 2.527029712e-05 | J128: 0.01215499629 | L128: 0.003556662584 | M128: 0.004958418313 | N128: 0.0002512785457 | O128: 0.001424332019 | P128: 2.527029712e-05 | Q128: 0.01019069146
A129: 2004 | B129: 1 | C129: 6 | D129: 7 | E129: 0.005022571857 | F129: 0.006357428982 | G129: 0.0002763078979 | H129: 0.002208945412 | I129: 2.527029712e-05 | J129: 0.01389052445 | L129: 0.004284511274 | M129: 0.005387207348 | N129: 0.0002512785457 | O129: 0.001716778932 | P129: 2.527029712e-05 | Q129: 0.0116397761
A130: 2004 | B130: 1 | C130: 6 | D130: 8 | E130: 0.005340654153 | F130: 0.007126716747 | G130: 0.0002265724763 | H130: 0.002702120426 | I130: 2.426294692e-05 | J130: 0.01542032675 | L130: 0.004555851779 | M130: 0.006039092366 | N130: 0.0002060484075 | O130: 0.002100071552 | P130: 2.426294692e-05 | Q130: 0.0129010641
A131: 2004 | B131: 1 | C131: 6 | D131: 9 | E131: 0.005208895667 | F131: 0.008057986697 | G131: 0 | H131: 0.003319058778 | I131: 1.967390711e-05 | J131: 0.01660561505 | L131: =E131*T$5 -> 0.004443455035 | M131: =F131*U$5 -> 0.0068282391 | N131: =G131*V$5 -> 0 | O131: =H131*X$5 -> 0.002579552286 | P131: =I131 -> 1.967390711e-05 | Q131: =SUM(L131:O131) -> 0.01385124642
A132: 2004 | B132: 1 | C132: 6 | D132: 10 | E132: 0.004994384538 | F132: 0.008495423348 | G132: 0 | H132: 0.003657585564 | I132: 1.967390711e-05 | J132: 0.01716706736 | L132: 0.004260466046 | M132: 0.007198917553 | N132: 0 | O132: 0.002842653244 | P132: 1.967390711e-05 | Q132: 0.01430203684
A133: 2004 | B133: 1 | C133: 6 | D133: 11 | E133: 0.004780694642 | F133: 0.008477585239 | G133: 0 | H133: 0.003642031793 | I133: 1.967390711e-05 | J133: 0.01691998558 | L133: 0.00407817761 | M133: 0.007183801758 | N133: 0 | O133: 0.002830564947 | P133: 1.967390711e-05 | Q133: 0.01409254432
A134: 2004 | B134: 1 | C134: 6 | D134: 12 | E134: 0.004638061865 | F134: 0.008237947128 | G134: 0 | H134: 0.003487734177 | I134: 1.967390711e-05 | J134: 0.01638341708 | L134: 0.003956504539 | M134: 0.006980735362 | N134: 0 | O134: 0.002710645779 | P134: 1.967390711e-05 | Q134: 0.01364788568
A135: 2004 | B135: 1 | C135: 6 | D135: 13 | E135: 0.00448188322 | F135: 0.008163013881 | G135: 0 | H135: 0.00339641349 | I135: 1.967390711e-05 | J135: 0.0160609845 | L135: 0.003823276149 | M135: 0.006917237847 | N135: 0 | O135: 0.002639671897 | P135: 1.967390711e-05 | Q135: 0.01338018589
A136: 2004 | B136: 1 | C136: 6 | D136: 14 | E136: 0.004316992632 | F136: 0.008173689593 | G136: 0 | H136: 0.003291631622 | I136: 1.967390711e-05 | J136: 0.01580198775 | L136: 0.003682616024 | M136: 0.006926284314 | N136: 0 | O136: 0.002558236067 | P136: 1.967390711e-05 | Q136: 0.01316713641
A137: 2004 | B137: 1 | C137: 6 | D137: 15 | E137: 0.004540250673 | F137: 0.007932626748 | G137: 0 | H137: 0.003208850561 | I137: 1.967390711e-05 | J137: 0.01570140189 | L137: 0.003873066578 | M137: 0.006722010616 | N137: 0 | O137: 0.00249389913 | P137: 1.967390711e-05 | Q137: 0.01308897632
A138: 2004 | B138: 1 | C138: 6 | D138: 16 | E138: 0.004983282761 | F138: 0.007361499004 | G138: 0 | H138: 0.003218839006 | I138: 1.967390711e-05 | J138: 0.01558329468 | L138: 0.004250995661 | M138: 0.006238043971 | N138: 0 | O138: 0.002501662088 | P138: 1.967390711e-05 | Q138: 0.01299070172
A139: 2004 | B139: 1 | C139: 6 | D139: 17 | E139: 0.005636169256 | F139: 0.007196877914 | G139: 9.11816063e-05 | H139: 0.003214418973 | I139: 2.152071581e-05 | J139: 0.01616016847 | L139: 0.004807941311 | M139: 0.006098546079 | N139: 8.292192009e-05 | O139: 0.002498226866 | P139: 2.152071581e-05 | Q139: 0.01348763618
A140: 2004 | B140: 1 | C140: 6 | D140: 18 | E140: 0.006491270702 | F140: 0.006889680878 | G140: 0.0002763078979 | H140: 0.003079746027 | I140: 2.527029712e-05 | J140: 0.0167622758 | L140: 0.005537386681 | M140: 0.005838231078 | N140: 0.0002512785457 | O140: 0.002393559872 | P140: 2.527029712e-05 | Q140: 0.01402045618
A141: 2004 | B141: 1 | C141: 6 | D141: 19 | E141: 0.007105824896 | F141: 0.006337284448 | G141: 0.0002763078979 | H141: 0.002527630603 | I141: 2.527029712e-05 | J141: 0.01627231814 | L141: 0.006061632914 | M141: 0.005370137118 | N141: 0.0002512785457 | O141: 0.001964459124 | P141: 2.527029712e-05 | Q141: 0.0136475077
A142: 2004 | B142: 1 | C142: 6 | D142: 20 | E142: 0.007075352054 | F142: 0.006186323404 | G142: 0.0002763078979 | H142: 0.002343174604 | I142: 2.527029712e-05 | J142: 0.01590642826 | L142: 0.006035638017 | M142: 0.00524221458 | N142: 0.0002512785457 | O142: 0.001821101044 | P142: 2.527029712e-05 | Q142: 0.01335023219
A143: 2004 | B143: 1 | C143: 6 | D143: 21 | E143: 0.006478340714 | F143: 0.005979407329 | G143: 0.0002763078979 | H143: 0.002406208046 | I143: 2.527029712e-05 | J143: 0.01516553428 | L143: 0.005526356738 | M143: 0.005066876436 | N143: 0.0002512785457 | O143: 0.001870090251 | P143: 2.527029712e-05 | Q143: 0.01271460197
A144: 2004 | B144: 1 | C144: 6 | D144: 22 | E144: 0.00595760395 | F144: 0.005812019548 | G144: 0.0002763078979 | H144: 0.002532529024 | I144: 2.527029712e-05 | J144: 0.01460373072 | L144: 0.005082141584 | M144: 0.004925034083 | N144: 0.0002512785457 | O144: 0.001968266147 | P144: 2.527029712e-05 | Q144: 0.01222672036
A145: 2004 | B145: 1 | C145: 6 | D145: 23 | E145: 0.00516229469 | F145: 0.005582038459 | G145: 0.0002763078979 | H145: 0.002252669195 | I145: 2.527029712e-05 | J145: 0.01329858054 | L145: 0.004403702013 | M145: 0.004730150929 | N145: 0.0002512785457 | O145: 0.00175076079 | P145: 2.527029712e-05 | Q145: 0.01113589228
A146: 2004 | B146: 1 | C146: 6 | D146: 24 | E146: 0.004512396592 | F146: 0.005403304847 | G146: 0.0002763078979 | H146: 0.002487606063 | I146: 2.527029712e-05 | J146: 0.0127048857 | L146: 0.003849305619 | M146: 0.004578694258 | N146: 0.0002512785457 | O146: 0.001933352295 | P146: 2.527029712e-05 | Q146: 0.01061263072
A147: 2004 | B147: 1 | C147: 7 | D147: 1 | E147: 0.004147607539 | F147: 0.005269147259 | G147: 0.0002763078979 | H147: 0.002498395249 | I147: 2.527029712e-05 | J147: 0.01221672824 | L147: 0.003538121856 | M147: 0.004465010764 | N147: 0.0002512785457 | O147: 0.001941737584 | P147: 2.527029712e-05 | Q147: 0.01019614875
A148: 2004 | B148: 1 | C148: 7 | D148: 2 | E148: 0.004142170729 | F148: 0.005133178282 | G148: 0.0002763078979 | H148: 0.002482350736 | I148: 2.527029712e-05 | J148: 0.01205927794 | L148: 0.003533483978 | M148: 0.00434979232 | N148: 0.0002512785457 | O148: 0.001929267887 | P148: 2.527029712e-05 | Q148: 0.01006382273
A149: 2004 | B149: 1 | C149: 7 | D149: 3 | E149: 0.004049720319 | F149: 0.005047648123 | G149: 0.0002763078979 | H149: 0.002436010445 | I149: 2.527029712e-05 | J149: 0.01183495708 | L149: 0.00345461904 | M149: 0.004277315113 | N149: 0.0002512785457 | O149: 0.001893252495 | P149: 2.527029712e-05 | Q149: 0.009876465193
A150: 2004 | B150: 1 | C150: 7 | D150: 4 | E150: 0.004118155453 | F150: 0.005045640538 | G150: 0.0002763078979 | H150: 0.00225883522 | I150: 2.527029712e-05 | J150: 0.0117242094 | L150: 0.003512997717 | M150: 0.004275613909 | N150: 0.0002512785457 | O150: 0.001755552988 | P150: 2.527029712e-05 | Q150: 0.009795443159
A151: 2004 | B151: 1 | C151: 7 | D151: 5 | E151: 0.004368849832 | F151: 0.00493854988 | G151: 0.0002763078979 | H151: 0.002304881115 | I151: 2.527029712e-05 | J151: 0.01191385902 | L151: 0.003726852874 | M151: 0.0041848666 | N151: 0.0002512785457 | O151: 0.001791339577 | P151: 2.527029712e-05 | Q151: 0.009954337597
A152: 2004 | B152: 1 | C152: 7 | D152: 6 | E152: 0.004691222025 | F152: 0.005161303251 | G152: 0.0002763078979 | H152: 0.002340374531 | I152: 2.527029712e-05 | J152: 0.012494478 | L152: 0.004001852881 | M152: 0.004373625074 | N152: 0.0002512785457 | O152: 0.001818924844 | P152: 2.527029712e-05 | Q152: 0.01044568134
A153: 2004 | B153: 1 | C153: 7 | D153: 7 | E153: 0.005327304793 | F153: 0.005629381254 | G153: 0.0002763078979 | H153: 0.002343673074 | I153: 2.527029712e-05 | J153: 0.01360193732 | L153: 0.004544464091 | M153: 0.004770268633 | N153: 0.0002512785457 | O153: 0.001821488452 | P153: 2.527029712e-05 | Q153: 0.01138749972
A154: 2004 | B154: 1 | C154: 7 | D154: 8 | E154: 0.005563951715 | F154: 0.00663959574 | G154: 0.0002265724763 | H154: 0.002777608413 | I154: 2.426294692e-05 | J154: 0.01523199129 | L154: 0.004746336046 | M154: 0.005626311999 | N154: 0.0002060484075 | O154: 0.002158740356 | P154: 2.426294692e-05 | Q154: 0.01273743681
A155: 2004 | B155: 1 | C155: 7 | D155: 9 | E155: 0.005489855489 | F155: 0.007499263847 | G155: 0 | H155: 0.003505444039 | I155: 1.967390711e-05 | J155: 0.01651423728 | L155: 0.004683128167 | M155: 0.006354784209 | N155: 0 | O155: 0.002724409776 | P155: 1.967390711e-05 | Q155: 0.01376232215
A156: 2004 | B156: 1 | C156: 7 | D156: 10 | E156: 0.005364578772 | F156: 0.007724847947 | G156: 0 | H156: 0.004005570903 | I156: 1.967390711e-05 | J156: 0.01711467153 | L156: 0.004576260705 | M156: 0.006545941409 | N156: 0 | O156: 0.003113105332 | P156: 1.967390711e-05 | Q156: 0.01423530745
A157: 2004 | B157: 1 | C157: 7 | D157: 11 | E157: 0.005145620366 | F157: 0.007746337316 | G157: 0 | H157: 0.004004545697 | I157: 1.967390711e-05 | J157: 0.01691617729 | L157: 0.00438947796 | M157: 0.006564151237 | N157: 0 | O157: 0.003112308548 | P157: 1.967390711e-05 | Q157: 0.01406593774
A158: 2004 | B158: 1 | C158: 7 | D158: 12 | E158: 0.004991592839 | F158: 0.007807499738 | G158: 0 | H158: 0.003841952777 | I158: 1.967390711e-05 | J158: 0.01666071926 | L158: 0.004258084583 | M158: 0.006615979523 | N158: 0 | O158: 0.00298594232 | P158: 1.967390711e-05 | Q158: 0.01386000643
A159: 2004 | B159: 1 | C159: 7 | D159: 13 | E159: 0.004749579001 | F159: 0.007633690698 | G159: 0 | H159: 0.003636112025 | I159: 1.967390711e-05 | J159: 0.01603905563 | L159: 0.004051634373 | M159: 0.006468695874 | N159: 0 | O159: 0.00282596414 | P159: 1.967390711e-05 | Q159: 0.01334629439
A160: 2004 | B160: 1 | C160: 7 | D160: 14 | E160: 0.004615380311 | F160: 0.007557540149 | G160: 0 | H160: 0.003587818806 | I160: 1.967390711e-05 | J160: 0.01578041317 | L160: 0.003937156011 | M160: 0.006404166833 | N160: 0 | O160: 0.002788430944 | P160: 1.967390711e-05 | Q160: 0.01312975379
A161: 2004 | B161: 1 | C161: 7 | D161: 15 | E161: 0.004742589652 | F161: 0.00735621136 | G161: 0 | H161: 0.003336422913 | I161: 1.967390711e-05 | J161: 0.01545489783 | L161: 0.0040456721 | M161: 0.006233563286 | N161: 0 | O161: 0.002593047586 | P161: 1.967390711e-05 | Q161: 0.01287228297
A162: 2004 | B162: 1 | C162: 7 | D162: 16 | E162: 0.005094615223 | F162: 0.007279771827 | G162: 0 | H162: 0.003183612097 | I162: 1.967390711e-05 | J162: 0.01557767305 | L162: 0.004345967959 | M162: 0.006168789364 | N162: 0 | O162: 0.002474283949 | P162: 1.967390711e-05 | Q162: 0.01298904127
A163: 2004 | B163: 1 | C163: 7 | D163: 17 | E163: 0.00572117565 | F163: 0.007212808561 | G163: 8.841852732e-05 | H163: 0.003094965177 | I163: 2.146475191e-05 | J163: 0.01613883267 | L163: 0.004880456123 | M163: 0.006112045513 | N163: 8.040913464e-05 | O163: 0.002405388102 | P163: 2.146475191e-05 | Q163: 0.01347829887
A164: 2004 | B164: 1 | C164: 7 | D164: 18 | E164: 0.006629794322 | F164: 0.006893898296 | G164: 0.0002763078979 | H164: 0.002974500118 | I164: 2.527029712e-05 | J164: 0.01679977093 | L164: 0.00565555443 | M164: 0.005841804866 | N164: 0.0002512785457 | O164: 0.002311763392 | P164: 2.527029712e-05 | Q164: 0.01406040123
A165: 2004 | B165: 1 | C165: 7 | D165: 19 | E165: 0.007214436536 | F165: 0.006476906874 | G165: 0.0002763078979 | H165: 0.002313624039 | I165: 2.527029712e-05 | J165: 0.01630654564 | L165: 0.00615428421 | M165: 0.005488451449 | N165: 0.0002512785457 | O165: 0.001798134524 | P165: 2.527029712e-05 | Q165: 0.01369214873
A166: 2004 | B166: 1 | C166: 7 | D166: 20 | E166: 0.007117450522 | F166: 0.006439818176 | G166: 0.0002763078979 | H166: 0.002052834768 | I166: 2.527029712e-05 | J166: 0.01591168166 | L166: 0.006071550168 | M166: 0.005457022941 | N166: 0.0002512785457 | O166: 0.00159545069 | P166: 2.527029712e-05 | Q166: 0.01337530235
A167: 2004 | B167: 1 | C167: 7 | D167: 21 | E167: 0.006645168911 | F167: 0.006379773512 | G167: 0.0002763078979 | H167: 0.002355529735 | I167: 2.527029712e-05 | J167: 0.01568205035 | L167: 0.005668669743 | M167: 0.005406141829 | N167: 0.0002512785457 | O167: 0.001830703376 | P167: 2.527029712e-05 | Q167: 0.01315679349
A168: 2004 | B168: 1 | C168: 7 | D168: 22 | E168: 0.006067197695 | F168: 0.005942570533 | G168: 0.0002763078979 | H168: 0.002424232118 | I168: 2.527029712e-05 | J168: 0.01473557854 | L168: 0.005175630666 | M168: 0.005035661387 | N168: 0.0002512785457 | O168: 0.00188409845 | P168: 2.527029712e-05 | Q168: 0.01234666905
A169: 2004 | B169: 1 | C169: 7 | D169: 23 | E169: 0.005534551845 | F169: 0.005717452855 | G169: 0.0002763078979 | H169: 0.002568825285 | I169: 2.527029712e-05 | J169: 0.01412240818 | L169: 0.00472125645 | M169: 0.004844899428 | N169: 0.0002512785457 | O169: 0.00199647538 | P169: 2.527029712e-05 | Q169: 0.0118139098
A170: 2004 | B170: 1 | C170: 7 | D170: 24 | E170: 0.004629004573 | F170: 0.005631347388 | G170: 0.0002763078979 | H170: 0.002427542441 | I170: 2.527029712e-05 | J170: 0.0129894726 | L170: 0.003948778204 | M170: 0.004771934711 | N170: 0.0002512785457 | O170: 0.001886671214 | P170: 2.527029712e-05 | Q170: 0.01085866268
A171: 2004 | B171: 1 | C171: 8 | D171: 1 | E171: 0.004319525978 | F171: 0.005408373823 | G171: 0.0002763078979 | H171: 0.002352591556 | I171: 2.527029712e-05 | J171: 0.01238206955 | L171: 0.003684777098 | M171: 0.004582989646 | N171: 0.0002512785457 | O171: 0.001828419842 | P171: 2.527029712e-05 | Q171: 0.01034746513
A172: 2004 | B172: 1 | C172: 8 | D172: 2 | E172: 0.004362697989 | F172: 0.005180518402 | G172: 0.0002763078979 | H172: 0.002377694712 | I172: 2.527029712e-05 | J172: 0.0122224893 | L172: 0.003721605036 | M172: 0.004389907757 | N172: 0.0002512785457 | O172: 0.001847929862 | P172: 2.527029712e-05 | Q172: 0.0102107212
A173: 2004 | B173: 1 | C173: 8 | D173: 3 | E173: 0.004295340229 | F173: 0.005038236472 | G173: 0.0002763078979 | H173: 0.002359976216 | I173: 2.527029712e-05 | J173: 0.01199513111 | L173: 0.003664145414 | M173: 0.004269339795 | N173: 0.0002512785457 | O173: 0.001834159154 | P173: 2.527029712e-05 | Q173: 0.01001892291
A174: 2004 | B174: 1 | C174: 8 | D174: 4 | E174: 0.004417896168 | F174: 0.004952699436 | G174: 0.0002763078979 | H174: 0.002210711417 | I174: 2.527029712e-05 | J174: 0.01188288522 | L174: 0.003768691913 | M174: 0.00419685676 | N174: 0.0002512785457 | O174: 0.001718151461 | P174: 2.527029712e-05 | Q174: 0.009934978679
A175: 2004 | B175: 1 | C175: 8 | D175: 5 | E175: 0.004567696864 | F175: 0.005148585384 | G175: 0.0002763078979 | H175: 0.002057241019 | I175: 2.527029712e-05 | J175: 0.01207510146 | L175: 0.003896479586 | M175: 0.004362848109 | N175: 0.0002512785457 | O175: 0.001598875202 | P175: 2.527029712e-05 | Q175: 0.01010948144
A176: 2004 | B176: 1 | C176: 8 | D176: 6 | E176: 0.004915252267 | F176: 0.005334518139 | G176: 0.0002763078979 | H176: 0.002112230442 | I176: 2.527029712e-05 | J176: 0.01266357904 | L176: 0.004192962162 | M176: 0.004520405246 | N176: 0.0002512785457 | O176: 0.001641612646 | P176: 2.527029712e-05 | Q176: 0.0106062586
A177: 2004 | B177: 1 | C177: 8 | D177: 7 | E177: 0.005635539386 | F177: 0.005678142326 | G177: 0.0002763078979 | H177: 0.002170767092 | I177: 2.527029712e-05 | J177: 0.013786027 | L177: 0.004807404 | M177: 0.004811588168 | N177: 0.0002512785457 | O177: 0.001687106974 | P177: 2.527029712e-05 | Q177: 0.01155737769
A178: 2004 | B178: 1 | C178: 8 | D178: 8 | E178: 0.005881152621 | F178: 0.006559508686 | G178: 0.0002265724763 | H178: 0.002746643961 | I178: 2.426294692e-05 | J178: 0.01543814069 | L178: 0.00501692468 | M178: 0.005558447211 | N178: 0.0002060484075 | O178: 0.002134674973 | P178: 2.426294692e-05 | Q178: 0.01291609527
A179: 2004 | B179: 1 | C179: 8 | D179: 9 | E179: 0.005753495394 | F179: 0.007529887346 | G179: 0 | H179: 0.003434684989 | I179: 1.967390711e-05 | J179: 0.01673774164 | L179: 0.004908026522 | M179: 0.006380734187 | N179: 0 | O179: 0.002669416274 | P179: 1.967390711e-05 | Q179: 0.01395817698
A180: 2004 | B180: 1 | C180: 8 | D180: 10 | E180: 0.00556432992 | F180: 0.007879189714 | G180: 0 | H180: 0.003883109007 | I180: 1.967390711e-05 | J180: 0.01734630255 | L180: 0.004746658675 | M180: 0.006676728729 | N180: 0 | O180: 0.003017928692 | P180: 1.967390711e-05 | Q180: 0.0144413161
A181: 2004 | B181: 1 | C181: 8 | D181: 11 | E181: 0.005352176157 | F181: 0.00783688252 | G181: 0 | H181: 0.003936388944 | I181: 1.967390711e-05 | J181: 0.01714512153 | L181: 0.004565680639 | M181: 0.006640878132 | N181: 0 | O181: 0.003059337534 | P181: 1.967390711e-05 | Q181: 0.01426589631
A182: 2004 | B182: 1 | C182: 8 | D182: 12 | E182: 0.005225516318 | F182: 0.00780714512 | G182: 0 | H182: 0.00383387102 | I182: 1.967390711e-05 | J182: 0.01688620636 | L182: 0.004457633303 | M182: 0.006615679024 | N182: 0 | O182: 0.002979661227 | P182: 1.967390711e-05 | Q182: 0.01405297355
A183: 2004 | B183: 1 | C183: 8 | D183: 13 | E183: 0.004923437114 | F183: 0.007743253221 | G183: 0 | H183: 0.00356976519 | I183: 1.967390711e-05 | J183: 0.01625612943 | L183: 0.004199944256 | M183: 0.006561537812 | N183: 0 | O183: 0.002774399784 | P183: 1.967390711e-05 | Q183: 0.01353588185
A184: 2004 | B184: 1 | C184: 8 | D184: 14 | E184: 0.00474201466 | F184: 0.007765748697 | G184: 0 | H184: 0.003466548045 | I184: 1.967390711e-05 | J184: 0.01599398531 | L184: 0.004045181602 | M184: 0.006580600203 | N184: 0 | O184: 0.002694180046 | P184: 1.967390711e-05 | Q184: 0.01331996185
A185: 2004 | B185: 1 | C185: 8 | D185: 15 | E185: 0.004905424441 | F185: 0.007508025263 | G185: 0 | H185: 0.003230941766 | I185: 1.967390711e-05 | J185: 0.01566406538 | L185: 0.004184578523 | M185: 0.006362208525 | N185: 0 | O185: 0.00251106828 | P185: 1.967390711e-05 | Q185: 0.01305785533
A186: 2004 | B186: 1 | C186: 8 | D186: 16 | E186: 0.005182541111 | F186: 0.007667302391 | G186: 0 | H186: 0.002918985474 | I186: 1.967390711e-05 | J186: 0.01578850288 | L186: 0.004420973248 | M186: 0.006497178011 | N186: 0 | O186: 0.002268617748 | P186: 1.967390711e-05 | Q186: 0.01318676901
A187: 2004 | B187: 1 | C187: 8 | D187: 17 | E187: 0.005739519369 | F187: 0.007874859446 | G187: 8.289236936e-05 | H187: 0.002638632157 | I187: 2.135282411e-05 | J187: 0.01635725617 | L187: 0.004896104256 | M187: 0.006673059313 | N187: 7.538356372e-05 | O187: 0.002050728856 | P187: 2.135282411e-05 | Q187: 0.01369527599
A188: 2004 | B188: 1 | C188: 8 | D188: 18 | E188: 0.006710315055 | F188: 0.00753334529 | G188: 0.0002763078979 | H188: 0.002481900571 | I188: 2.527029712e-05 | J188: 0.01702713911 | L188: 0.005724242743 | M188: 0.006383664406 | N188: 0.0002512785457 | O188: 0.001928918022 | P188: 2.527029712e-05 | Q188: 0.01428810372
A189: 2004 | B189: 1 | C189: 8 | D189: 19 | E189: 0.007402722893 | F189: 0.006957212202 | G189: 0.0002763078979 | H189: 0.001865725139 | I189: 2.527029712e-05 | J189: 0.01652723843 | L189: 0.006314902125 | M189: 0.005895456293 | N189: 0.0002512785457 | O189: 0.001450030225 | P189: 2.527029712e-05 | Q189: 0.01391166719
A190: 2004 | B190: 1 | C190: 8 | D190: 20 | E190: 0.00737026691 | F190: 0.006700281377 | G190: 0.0002763078979 | H190: 0.001754903592 | I190: 2.527029712e-05 | J190: 0.01612703007 | L190: 0.006287215507 | M190: 0.005677736264 | N190: 0.0002512785457 | O190: 0.001363900393 | P190: 2.527029712e-05 | Q190: 0.01358013071
A191: 2004 | B191: 1 | C191: 8 | D191: 21 | E191: 0.006758927006 | F191: 0.00689843475 | G191: 0.0002763078979 | H191: 0.001935351417 | I191: 2.527029712e-05 | J191: 0.01589429137 | L191: 0.00576571123 | M191: 0.005845649001 | N191: 0.0002512785457 | O191: 0.001504143345 | P191: 2.527029712e-05 | Q191: 0.01336678212
A192: 2004 | B192: 1 | C192: 8 | D192: 22 | E192: 0.006095812663 | F192: 0.00660560558 | G192: 0.0002763078979 | H192: 0.001932014511 | I192: 2.527029712e-05 | J192: 0.01493501095 | L192: 0.005200040701 | M192: 0.005597509154 | N192: 0.0002512785457 | O192: 0.001501549922 | P192: 2.527029712e-05 | Q192: 0.01255037832
A193: 2004 | B193: 1 | C193: 8 | D193: 23 | E193: 0.005565286169 | F193: 0.006328422315 | G193: 0.0002763078979 | H193: 0.002118254696 | I193: 2.527029712e-05 | J193: 0.01431354138 | L193: 0.004747474404 | M193: 0.005362627455 | N193: 0.0002512785457 | O193: 0.00164629466 | P193: 2.527029712e-05 | Q193: 0.01200767506
A194: 2004 | B194: 1 | C194: 8 | D194: 24 | E194: 0.004751381519 | F194: 0.005960119833 | G194: 0.0002763078979 | H194: 0.002152192709 | I194: 2.527029712e-05 | J194: 0.01316527226 | L194: 0.004053172013 | M194: 0.005050532449 | N194: 0.0002512785457 | O194: 0.001672671077 | P194: 2.527029712e-05 | Q194: 0.01102765408
A195: 2004 | B195: 1 | C195: 9 | D195: 1 | E195: 0.003974740864 | F195: 0.005797735862 | G195: 0.0002763078979 | H195: 0.001621855137 | I195: 2.527029712e-05 | J195: 0.01169591006 | L195: =E195*T$5 -> 0.00339065772 | M195: =F195*U$5 -> 0.004912930263 | N195: =G195*V$5 -> 0.0002512785457 | O195: =H195*X$5 -> 0.001260495943 | P195: =I195 -> 2.527029712e-05 | Q195: =SUM(L195:O195) -> 0.009815362472
A196: 2004 | B196: 1 | C196: 9 | D196: 2 | E196: 0.003977342355 | F196: 0.00555334395 | G196: 0.0002763078979 | H196: 0.001692495434 | I196: 2.527029712e-05 | J196: 0.01152475993 | L196: 0.003392876926 | M196: 0.004705835554 | N196: 0.0002512785457 | O196: 0.001315397153 | P196: 2.527029712e-05 | Q196: 0.009665388178
A197: 2004 | B197: 1 | C197: 9 | D197: 3 | E197: 0.003958835465 | F197: 0.005408533139 | G197: 0.0002763078979 | H197: 0.001619396279 | I197: 2.527029712e-05 | J197: 0.01128834308 | L197: 0.003377089599 | M197: 0.004583124649 | N197: 0.0002512785457 | O197: 0.001258584934 | P197: 2.527029712e-05 | Q197: 0.009470077728
A198: 2004 | B198: 1 | C198: 9 | D198: 4 | E198: 0.004051526038 | F198: 0.005236543792 | G198: 0.0002763078979 | H198: 0.001547523458 | I198: 2.527029712e-05 | J198: 0.01113717148 | L198: 0.00345615941 | M198: 0.004437382985 | N198: 0.0002512785457 | O198: 0.001202725815 | P198: 2.527029712e-05 | Q198: 0.009347546756
A199: 2004 | B199: 1 | C199: 9 | D199: 5 | E199: 0.00435170004 | F199: 0.005331345976 | G199: 0.0002763078979 | H199: 0.001382968933 | I199: 2.527029712e-05 | J199: 0.01136759314 | L199: 0.003712223222 | M199: 0.004517717194 | N199: 0.0002512785457 | O199: 0.00107483504 | P199: 2.527029712e-05 | Q199: 0.009556054001
A200: 2004 | B200: 1 | C200: 9 | D200: 6 | E200: 0.004673223532 | F200: 0.005632541802 | G200: 0.0002763078979 | H200: 0.001321651847 | I200: 2.527029712e-05 | J200: 0.01192899538 | L200: 0.003986499243 | M200: 0.004772946843 | N200: 0.0002512785457 | O200: 0.001027179773 | P200: 2.527029712e-05 | Q200: 0.0100379044
... 4297 more rows

Sheet 2006 Input to CA model
A2: Feed into OEB Cost Allocation Model (version 50) sheet "I6 Customer Data", row 27
D3: 1 | E3: 2 | F3: 3 | G3: 4 | H3: 5 | I3: 6 | J3: 7 | K3: 8 | L3: 9 | M3: 10 | N3: 11 | O3: 12 | P3: 13 | Q3: 14 | R3: 15 | S3: 16 | T3: 17 | U3: 18 | V3: 19 | W3: 20
B4: ID | C4: Total | D4: Residential | E4: GS>50kW | F4: Street Lighting | G4: Sentinel Lighting | H4: USL | I4: GS<50kW
A6: kWh - 30 year weather normalized amount | C6: =SUM(D6:I6) -> 468300043.1 | D6: 239658158.5 | E6: 146047497.3 | F6: 5353155.35 | G6: 7299.44 | H6: 534100.97 | I6: 76699831.46 | J6: 0 | K6: 0 | L6: 0 | M6: 0 | N6: 0
A9: Feed into OEB Cost Allocation Model sheet (version 50) "I8 Demand Data", row 40, 45, 50, 55, 61 and 67
D10: 1 | E10: 2 | F10: 3 | G10: 4 | H10: 5 | I10: 6 | J10: 7 | K10: 8 | L10: 9 | M10: 10 | N10: 11 | O10: 12 | P10: 13 | Q10: 14 | R10: 15 | S10: 16 | T10: 17 | U10: 18 | V10: 19 | W10: 20
A11: Customer Classes | C11: Total | D11: Residential | E11: GS>50kW | F11: Street Lighting | G11: Sentinel Lighting | H11: USL | I11: GS<50kW
A13: CO-INCIDENT PEAK (kW)
A15: 1 CP
A16: Total Sytem CP | B16: DCP1 | C16: =SUM(D16:I16) -> 90994.93773 | D16: 52245.53213 | E16: 23590.97199 | F16: 0 | G16: 0 | H16: 60.36563172 | I16: 15098.06798
A18: 4 CP
A19: Total Sytem CP | B19: DCP4 | C19: =SUM(D19:I19) -> 346121.9472 | D19: 205823.4802 | E19: 87757.22632 | F19: 1290.373102 | G19: 1.702346992 | H19: 242.1747483 | I19: 51006.99042
A21: 12 CP
A22: Total Sytem CP | B22: DCP12 | C22: =SUM(D22:I22) -> 873581.3835 | D22: 491011.8213 | E22: 250324.7531 | F22: 5020.072793 | G22: 6.897899372 | H22: 729.1382967 | I22: 126488.7001
A24: NON CO_INCIDENT PEAK (kW)
A26: 1 NCP
A27: Classification NCP from Load Data Provider | B27: DNCP1 | C27: =SUM(D27:I27) -> 104158.7728 | D27: 60081.86622 | E27: 25609.11694 | F27: 1404.96 | G27: 1.865549971 | H27: 78.34950269 | I27: 16982.61458
A29: 4 NCP
A30: Classification NCP from Load Data Provider | B30: DNCP4 | C30: =SUM(D30:I30) -> 390421.2458 | D30: 223469.2014 | E30: 98329.20966 | F30: 5213.623472 | G30: 7.103304655 | H30: 268.4472625 | I30: 63133.66063
A32: 12 NCP
A33: Classification NCP from Load Data Provider | B33: DNCP12 | C33: =SUM(D33:I33) -> 993309.0826 | D33: 529017.034 | E33: 276653.0309 | F33: 14692.13854 | G33: 20.05776325 | H33: 729.1382967 | I33: 172197.6832

Sheet Revised Inputs to CA model
A2: Feed into OEB Cost Allocation Model (version 50) sheet "I6 Customer Data", row 27
B4: ID | C4: Total | D4: ='Hourly load shapes by class'!E2 -> Residential | E4: ='Hourly load shapes by class'!F2 -> GS>50kW | F4: ='Hourly load shapes by class'!G2 -> Street Lighting | G4: ='Hourly load shapes by class'!H2 -> GS<50kW | H4: ='Hourly load shapes by class'!I2 -> USL
A6: kWh - 30 year weather normalized amount | C6: =SUM(D6:H6) ->  | D6: ='Hourly load shapes by class'!T4 -> 28929065.91 | E6: ='Hourly load shapes by class'!U4 -> 43433993.55 | F6: 430600.273 | G6: ='Hourly load shapes by class'!X4 -> 149639.5227 | H6: ='Hourly load shapes by class'!#REF! -> 
A9: Feed into OEB Cost Allocation Model sheet (version 50) "I8 Demand Data", row 40, 45, 50, 55, 61 and 67 | J9: 2015 Demand Data
A11: Customer Classes | C11: Total | D11: ='Hourly load shapes by class'!E2 -> Residential | E11: ='Hourly load shapes by class'!F2 -> GS>50kW | F11: ='Hourly load shapes by class'!G2 -> Street Lighting | G11: ='Hourly load shapes by class'!H2 -> GS<50kW | H11: ='Hourly load shapes by class'!I2 -> USL | J11: =D11 -> Residential | K11: =E11 -> GS>50kW | L11: =F11 -> Street Lighting | M11: =G11 -> GS<50kW | N11: USL
A13: CO-INCIDENT PEAK (kW)
A15: 1 CP
A16: Total Sytem CP | B16: DCP1 | C16: =SUM(D16:H16) -> 18477.84542 | D16: ='Hourly load shapes by class'!E8802*1000000 -> 5972.908614 | E16: ='Hourly load shapes by class'!F8802*1000000 -> 9039.895307 | F16: ='Hourly load shapes by class'!G8802*1000000 -> 0 | G16: ='Hourly load shapes by class'!H8802*1000000 -> 3445.367592 | H16: ='Hourly load shapes by class'!I8802*1000000 -> 19.67390711 | J16: ='Hourly load shapes by class'!L8802*1000000 -> 5095.197247 | K16: ='Hourly load shapes by class'!M8802*1000000 -> 7660.296413 | L16: ='Hourly load shapes by class'!N8802*1000000 -> 0 | M16: ='Hourly load shapes by class'!O8802*1000000 -> 2677.718728 | N16: ='Hourly load shapes by class'!P8802*1000000 -> 19.67390711
A18: 4 CP
A19: Total Sytem CP | B19: DCP4 | C19: =SUM(D19:H19) -> 71167.72557 | D19: =SUM('Hourly load shapes by class'!E8815:E8818)*1000000 -> 23596.35681 | E19: =SUM('Hourly load shapes by class'!F8815:F8818)*1000000 -> 35486.26854 | F19: =SUM('Hourly load shapes by class'!G8815:G8818)*1000000 -> 276.3078906 | G19: =SUM('Hourly load shapes by class'!H8815:H8818)*1000000 -> 11726.07772 | H19: =SUM('Hourly load shapes by class'!I8815:I8818)*1000000 -> 82.71460997 | J19: =SUM('Hourly load shapes by class'!L8815:L8818)*1000000 -> 20128.90201 | K19: =SUM('Hourly load shapes by class'!M8815:M8818)*1000000 -> 30070.62874 | L19: =SUM('Hourly load shapes by class'!N8815:N8818)*1000000 -> 251.2785391 | M19: =SUM('Hourly load shapes by class'!O8815:O8818)*1000000 -> 9113.436253 | N19: =SUM('Hourly load shapes by class'!P8815:P8818)*1000000 -> 82.71460997
A21: 12 CP
A22: Total Sytem CP | B22: DCP12 | C22: =SUM(D22:H22) -> 193648.3062 | D22: =SUM('Hourly load shapes by class'!E8802:E8813)*1000000 -> 58781.57475 | E22: =SUM('Hourly load shapes by class'!F8802:F8813)*1000000 -> 101305.1278 | F22: =SUM('Hourly load shapes by class'!G8802:G8813)*1000000 -> 276.3078906 | G22: =SUM('Hourly load shapes by class'!H8802:H8813)*1000000 -> 33054.74309 | H22: =SUM('Hourly load shapes by class'!I8802:I8813)*1000000 -> 230.5526235 | J22: =SUM('Hourly load shapes by class'!L8802:L8813)*1000000 -> 52200.58659 | K22: =SUM('Hourly load shapes by class'!M8802:M8813)*1000000 -> 84828.17271 | L22: =SUM('Hourly load shapes by class'!N8802:N8813)*1000000 -> 502.5572126 | M22: =SUM('Hourly load shapes by class'!O8802:O8813)*1000000 -> 24527.5991 | N22: =SUM('Hourly load shapes by class'!P8802:P8813)*1000000 -> 237.449583
A24: NON CO_INCIDENT PEAK (kW)
A26: 1 NCP
A27: Classification NCP from Load Data Provider | B27: DNCP1 | C27: =SUM(D27:H27) -> 21444.28494 | D27: ='Hourly load shapes by class'!E8788*1000000 -> 7882.302342 | E27: ='Hourly load shapes by class'!F8788*1000000 -> 9254.833495 | F27: ='Hourly load shapes by class'!G8788*1000000 -> 276.3078979 | G27: ='Hourly load shapes by class'!H8788*1000000 -> 4005.570903 | H27: ='Hourly load shapes by class'!I8788*1000000 -> 25.27029712 | J27: ='Hourly load shapes by class'!L8788*1000000 -> 6724.007981 | K27: ='Hourly load shapes by class'!M8788*1000000 -> 7842.432397 | L27: ='Hourly load shapes by class'!N8788*1000000 -> 251.2785457 | M27: ='Hourly load shapes by class'!O8788*1000000 -> 3113.105332 | N27: ='Hourly load shapes by class'!P8788*1000000 -> 25.27029712
A29: 4 NCP
A30: Classification NCP from Load Data Provider | B30: DNCP4 | C30: =SUM(D30:H30) -> 85240.40629 | D30: =(LARGE('Hourly load shapes by class'!E8788:E8799,1)+LARGE('Hourly load shapes by class'!E8788:E8799,2)+LARGE('Hourly load shapes by class'!E8788:E8799,3)+LARGE('Hourly load shapes by class'!E8788:E8799,4))*1000000 -> 31577.49694 | E30: =(LARGE('Hourly load shapes by class'!F8788:F8799,1)+LARGE('Hourly load shapes by class'!F8788:F8799,2)+LARGE('Hourly load shapes by class'!F8788:F8799,3)+LARGE('Hourly load shapes by class'!F8788:F8799,4))*1000000 -> 37381.24281 | F30: =(LARGE('Hourly load shapes by class'!G8788:G8799,1)+LARGE('Hourly load shapes by class'!G8788:G8799,2)+LARGE('Hourly load shapes by class'!G8788:G8799,3)+LARGE('Hourly load shapes by class'!G8788:G8799,4))*1000000 -> 1105.231742 | G30: =(LARGE('Hourly load shapes by class'!H8788:H8799,1)+LARGE('Hourly load shapes by class'!H8788:H8799,2)+LARGE('Hourly load shapes by class'!H8788:H8799,3)+LARGE('Hourly load shapes by class'!H8788:H8799,4))*1000000 -> 15065.06014 | H30: =(LARGE('Hourly load shapes by class'!I8788:I8799,1)+LARGE('Hourly load shapes by class'!I8788:I8799,2)+LARGE('Hourly load shapes by class'!I8788:I8799,3)+LARGE('Hourly load shapes by class'!I8788:I8799,4))*1000000 -> 111.3746491 | J30: =(LARGE('Hourly load shapes by class'!L8788:L8799,1)+LARGE('Hourly load shapes by class'!L8788:L8799,2)+LARGE('Hourly load shapes by class'!L8788:L8799,3)+LARGE('Hourly load shapes by class'!L8788:L8799,4))*1000000 -> 26937.2237 | K30: =(LARGE('Hourly load shapes by class'!M8788:M8799,1)+LARGE('Hourly load shapes by class'!M8788:M8799,2)+LARGE('Hourly load shapes by class'!M8788:M8799,3)+LARGE('Hourly load shapes by class'!M8788:M8799,4))*1000000 -> 31676.40669 | L30: =(LARGE('Hourly load shapes by class'!N8788:N8799,1)+LARGE('Hourly load shapes by class'!N8788:N8799,2)+LARGE('Hourly load shapes by class'!N8788:N8799,3)+LARGE('Hourly load shapes by class'!N8788:N8799,4))*1000000 -> 1005.11432 | M30: =(LARGE('Hourly load shapes by class'!O8788:O8799,1)+LARGE('Hourly load shapes by class'!O8788:O8799,2)+LARGE('Hourly load shapes by class'!O8788:O8799,3)+LARGE('Hourly load shapes by class'!O8788:O8799,4))*1000000 -> 11708.47307 | N30: =(LARGE('Hourly load shapes by class'!P8788:P8799,1)+LARGE('Hourly load shapes by class'!P8788:P8799,2)+LARGE('Hourly load shapes by class'!P8788:P8799,3)+LARGE('Hourly load shapes by class'!P8788:P8799,4))*1000000 -> 111.3746491
A32: 12 NCP
A33: Classification NCP from Load Data Provider | B33: DNCP12 | C33: =SUM(D33:H33) -> 225263.8976 | D33: =SUM('Hourly load shapes by class'!E8788:E8799)*1000000 -> 79108.85986 | E33: =SUM('Hourly load shapes by class'!F8788:F8799)*1000000 -> 104797.2863 | F33: =SUM('Hourly load shapes by class'!G8788:G8799)*1000000 -> 3315.694668 | G33: =SUM('Hourly load shapes by class'!H8788:H8799)*1000000 -> 37736.59148 | H33: =SUM('Hourly load shapes by class'!I8788:I8799)*1000000 -> 305.4652977 | J33: =SUM('Hourly load shapes by class'!L8788:L8799)*1000000 -> 67483.91294 | K33: =SUM('Hourly load shapes by class'!M8788:M8799)*1000000 -> 88803.93515 | L33: =SUM('Hourly load shapes by class'!N8788:N8799)*1000000 -> 3015.342452 | M33: =SUM('Hourly load shapes by class'!O8788:O8799)*1000000 -> 29328.64927 | N33: =SUM('Hourly load shapes by class'!P8788:P8799)*1000000 -> 305.4652977
